Cogmind - Beta 12 *** ADVENTURER MODE // 2023.11.23 @ 21:09:18 // Winter2019/RPGLIKE Player: Noname Result: Escaped! Performance ------------- Evolutions (9) 4500 Regions Visited (27) 5400 Robots Destroyed (790) 3950 Value Destroyed (42515) 42515 Prototype IDs (93) 1860 Alien Tech Used (0) 0 Bonus (15970) 15970 TOTAL SCORE: 74195 Bonus ------- High Alert Combat Kills 5411 Follower Combat Kills 1260 Entered Garrisons 1600 Used RIF Installer 4500 Aligned with FarCom 300 MAIN.C Attacked Warlord 500 Win 3000 Friendly Fire -601 Cogmind --------- Core Integrity 800/800 Matter 300/300 Energy 836/850 System Corruption 0% Temperature Cool (-192) Movement Treading (160) Location To Epsilon Eridani Parts ------- > --- POWER (3) -------- Quantum Reactor Quantum Reactor Reinforced Quantum Reactor > --- PROPULSION (4) --- Centrium Heavy Treads Centrium Heavy Treads > --- UTILITY (13) ----- Experimental Power Amplifier Advanced Cryofiber Web Coolant Network Experimental Signal Interpreter Core Analyzer Improved Armor Integrity Analyzer Particle Accelerator Quantum Capacitor Experimental Transmission Jammer Advanced Phase Shifter Advanced Force Field > --- WEAPON (4) ------- Compact HERF Cannon Enhanced Nova Cannon Firepult > --- INVENTORY (8) ---- Quantum Reactor Experimental Cooling System Advanced Trap Scanner Graphene Brace Advanced System Shield Improved Dynamic Insulation System Advanced System Restoration Module Enhanced Quantum Rifle Peak State ------------ > --- POWER ------------ Quantum Reactor Quantum Reactor Reinforced Quantum Reactor > --- PROPULSION ------- Centrium Heavy Treads Centrium Heavy Treads > --- UTILITY ---------- Advanced Cryofiber Web Experimental Cooling System Coolant Network Experimental Signal Interpreter Core Analyzer Particle Accelerator Quantum Capacitor Advanced Transmission Jammer Advanced Phase Shifter Centrium Light Armor Plating Advanced Force Field > --- WEAPON ----------- Enhanced Quantum Rifle Enhanced Nova Cannon Firepult > --- INVENTORY -------- Centrium Heavy Treads Experimental Power Amplifier Advanced Trap Scanner Graphene Brace Improved Dynamic Insulation System Advanced System Restoration Module Compact HERF Cannon [Rating: 207] Favorites ----------- Power Quantum Reactor Engine Improved Deuterium Engine Power Core Neutrino Core Reactor Quantum Reactor Propulsion Advanced Heavy Siege Treads Treads Advanced Heavy Siege Treads Leg Improved Titanium Leg Wheel Centrium Wheel Utility Quantum Capacitor Device Quantum Capacitor Storage High-capacity Matter Pod Processor Core Analyzer Hackware System Shield Protection Improved Heavy Armor Plating Weapon Firepult Energy Gun Enhanced Quantum Rifle Energy Cannon Firepult Ballistic Gun KE Penetrator Ballistic Cannon Enhanced Gauss Cannon Impact Weapon Impact Mace Slashing Weapon Ripper Special Melee Weapon Dirty Datajack Build | -11 -10 -10 -10 -9 -8 -8 -8 -8 -7 -7 -6 -6 -5 -5 -5 -5 -5 -5 -4 -4 -4 -3 -3 -3 -3 -2 -1 ------- Run | Jun Mat Min Exi Min Mat Gar Mat Gar Fac Gar Fac Gar Fac Gar Fac Upp Upp War Pro Fac Gar Res Gar Res Gar Res Acc Slots Evolved 20 | 5 1 . . . 3 3 1 1 . . 1 1 . 1 . . . . . . 1 . 1 . . 1 . Power 2 | . . . . . . . . 1 . . . . . . . . . . . . . . 1 . . . . Propulsion 3 | 1 . . . . . 1 1 . . . . . . . . . . . . . . . . . . . . Utility 12 | 3 1 . . . 2 1 . . . . 1 1 . 1 . . . . . . 1 . . . . 1 . Weapon 3 | 1 . . . . 1 1 . . . . . . . . . . . . . . . . . . . . . Parts Attached 410 | 5 10 . 1 4 25 20 10 5 10 11 26 4 20 9 26 2 1 . 5 13 7 20 18 63 10 30 55 Power 18 | 1 . . . . 2 1 . 1 1 1 . 1 1 2 2 . . . . . . 1 4 . . . . Engine 5 | 1 . . . . 2 . . . 1 1 . . . . . . . . . . . . . . . . . Core 4 | . . . . . . 1 . 1 . . . . 1 . 1 . . . . . . . . . . . . Reactor 9 | . . . . . . . . . . . . 1 . 2 1 . . . . . . 1 4 . . . . Propulsion 32 | 3 . . . . 4 1 2 . 2 4 2 . 2 1 . 1 . . . 1 . 3 3 . . 2 1 Treads 14 | 1 . . . . . . . . . 2 . . 2 1 . 1 . . . 1 . 2 1 . . 2 1 Leg 12 | 1 . . . . 2 1 2 . 2 . 2 . . . . . . . . . . . 2 . . . . Wheel 6 | 1 . . . . 2 . . . . 2 . . . . . . . . . . . 1 . . . . . Hover . | . . . . . . . . . . . . . . . . . . . . . . . . . . . . Flight . | . . . . . . . . . . . . . . . . . . . . . . . . . . . . Utility 285 | . 8 . . 4 3 9 1 . 7 6 13 3 13 4 24 1 1 . 3 12 7 13 7 57 10 27 52 Device 262 | . 3 . . 4 2 8 . . 5 6 11 3 11 4 23 . 1 . 3 12 7 13 7 56 10 26 47 Storage 1 | . 1 . . . . . . . . . . . . . . . . . . . . . . . . . . Processor 10 | . 2 . . . . . . . 1 . 1 . 2 . . . . . . . . . . 1 . . 3 Hackware 1 | . . . . . . . 1 . . . . . . . . . . . . . . . . . . . . Protection 11 | . 2 . . . 1 1 . . 1 . 1 . . . 1 1 . . . . . . . . . 1 2 Artifact . | . . . . . . . . . . . . . . . . . . . . . . . . . . . . Weapon 75 | 1 2 . 1 . 16 9 7 4 . . 11 . 4 2 . . . . 2 . . 3 4 6 . 1 2 Energy Gun 18 | . 2 . . . 2 . . . . . 4 . 3 1 . . . . . . . 2 2 1 . . 1 Energy Cannon 13 | . . . 1 . . . . 1 . . 2 . 1 1 . . . . 1 . . . . 4 . 1 1 Ballistic Gun 23 | 1 . . . . 8 4 3 2 . . 3 . . . . . . . . . . 1 . 1 . . . Ballistic Cannon 2 | . . . . . . 1 . . . . 1 . . . . . . . . . . . . . . . . Launcher . | . . . . . . . . . . . . . . . . . . . . . . . . . . . . Special Weapon . | . . . . . . . . . . . . . . . . . . . . . . . . . . . . Impact Weapon 1 | . . . . . . . . . . . . . . . . . . . . . . . 1 . . . . Slashing Weapon 17 | . . . . . 6 4 4 1 . . 1 . . . . . . . . . . . 1 . . . . Piercing Weapon . | . . . . . . . . . . . . . . . . . . . . . . . . . . . . Special Melee Weapon 1 | . . . . . . . . . . . . . . . . . . . 1 . . . . . . . . Unidentified Prototypes 44 | . 1 . . . 2 . . . . . 8 . 5 . 3 . . . . 1 . 5 4 8 1 2 4 Parts Lost . | . . . . . . . . . . . . . . . . . . . . . . . . . . . . Power . | . . . . . . . . . . . . . . . . . . . . . . . . . . . . Propulsion . | . . . . . . . . . . . . . . . . . . . . . . . . . . . . Utility . | . . . . . . . . . . . . . . . . . . . . . . . . . . . . Weapon . | . . . . . . . . . . . . . . . . . . . . . . . . . . . . Highest Loss Streak . | . . . . . . . . . . . . . . . . . . . . . . . . . . . . To Critical Strikes . | . . . . . . . . . . . . . . . . . . . . . . . . . . . . Average Slot Usage (%) 83 | . 87 100 92 89 82 84 86 88 87 88 88 89 89 89 85 84 80 80 80 80 79 80 77 77 78 79 78 Engine 1 | . 10 10 10 10 7 5 . . 3 5 5 1 . . . . . . . . . . . . . . . Core 1 | . . . . . . 1 5 9 7 5 5 5 4 4 . . . . . . . . . . . . . Reactor 6 | . . . . . . . . . . . . 3 5 5 8 9 9 9 9 9 9 9 12 13 13 12 12 Treads 6 | . 10 10 10 10 4 . . . . 5 9 . 6 8 4 4 9 9 9 9 9 8 8 8 8 8 8 Leg 4 | . . . . . 7 14 18 22 22 7 . 10 3 . . . . . . . . . . . . . . Wheel 3 | . 10 10 10 10 4 . . . . 8 10 10 10 9 9 7 . . . . . . . . . . . Device 34 | . 7 20 20 32 35 39 34 27 27 35 38 36 37 35 37 33 33 33 37 38 37 39 34 33 34 36 33 Processor 7 | . 15 20 20 6 . . . . 2 1 2 5 7 9 9 9 9 9 9 9 9 9 8 8 8 8 11 Protection 1 | . 5 10 10 10 7 6 5 5 4 1 . . . . . 3 4 4 . . . . . . . . . Energy Gun 2 | . 8 20 5 . . . . . . . 2 5 4 4 4 4 4 4 4 4 4 3 3 3 4 3 . Energy Cannon 8 | . . . 7 10 7 6 5 6 11 11 10 10 10 9 9 9 9 9 9 9 9 9 8 8 8 8 12 Ballistic Gun 1 | . 13 . . . 5 4 4 3 5 5 2 . . . . . . . . . . . . . . . . Naked Turns . | . . . . . . . . . . . . . . . . . . . . . . . . . . . . Heaviest Build 156 | 9 17 17 33 35 59 79 76 79 86 89 92 93 95 102 103 103 103 103 105 105 113 113 144 153 153 156 149 Greatest Support 160 | 20 20 20 20 20 40 60 75 75 80 80 56 32 32 75 32 155 155 155 155 160 160 160 160 160 160 160 160 Greatest Overweight (x) 37 | . . . 3 3 5 1 1 1 1 5 3 2 2 6 6 3 . . . . . 37 1 . . . . Average Overweight (x) . | . . . 1 2 3 1 . . . 1 2 2 2 1 3 2 . . . . . . . . . . . Largest Inventory Capacity 8 | 1 1 1 3 4 5 5 5 5 5 6 6 6 6 6 7 7 7 7 7 7 7 7 8 8 8 8 8 Average Capacity 6 | 1 1 1 1 3 4 5 5 5 5 5 6 6 6 6 6 7 7 7 7 7 7 7 7 8 8 8 8 Most Carried 8 | 1 1 1 3 4 4 5 5 5 5 6 6 6 6 6 7 7 7 7 7 7 7 7 8 8 8 8 8 Average Carried 6 | . . 1 1 3 3 4 5 5 4 5 5 5 5 5 6 6 7 7 7 6 7 6 7 7 8 7 7 Final Capacity 8 | 1 1 1 3 4 5 5 5 5 5 6 6 6 6 6 7 7 7 7 7 7 7 7 8 8 8 8 8 Final Carried 8 | 1 1 1 3 4 4 5 5 5 5 6 6 6 6 6 7 7 7 7 7 7 7 7 8 8 8 8 8 Class Distribution -------------------- 80% | Hacker-Mutant 9% | Infiltrator-Mutant 4% | Mutant Dominant Class ---------------- Mutant | -10/Materials Mutant | -10/Mines Mutant | -10/Exiles Infiltrator-Mutant | -9/Mines Infiltrator-Mutant | -8/Materials Infiltrator-Mutant | -8/Garrison Infiltrator-Mutant | -8/Materials Hacker-Mutant | -8/Garrison Hacker-Mutant | -7/Factory Hacker-Mutant | -7/Garrison Hacker-Mutant | -6/Factory Hacker-Mutant | -6/Garrison Hacker-Mutant | -5/Factory Hacker-Mutant | -5/Garrison Hacker-Mutant | -5/Factory Hacker-Mutant | -5/Upper Caves Hacker-Mutant | -5/Upper Caves Hacker-Mutant | -5/Warlord Hacker-Mutant | -4/Proximity Caves Hacker-Mutant | -4/Factory Hacker-Mutant | -4/Garrison Hacker-Mutant | -3/Research Hacker-Mutant | -3/Garrison Hacker-Mutant | -3/Research Hacker-Mutant | -3/Garrison Hacker-Mutant | -2/Research Hacker-Mutant | -1/Access Resources | -11 -10 -10 -10 -9 -8 -8 -8 -8 -7 -7 -6 -6 -5 -5 -5 -5 -5 -5 -4 -4 -4 -3 -3 -3 -3 -2 -1 ----------- Run | Jun Mat Min Exi Min Mat Gar Mat Gar Fac Gar Fac Gar Fac Gar Fac Upp Upp War Pro Fac Gar Res Gar Res Gar Res Acc Matter Collected 6511 | 250 282 10 25 49 474 284 671 586 348 250 296 30 223 90 269 20 10 . 50 110 90 210 180 626 176 290 612 Remotely 474 | . . . . . 474 . . . . . . . . . . . . . . . . . . . . . . Salvage Created 38127 | . 377 64 563 108 753 605 710 569 898 1772 1077 890 1345 1502 1612 494 632 264 1228 904 1006 3202 1447 4100 3745 3205 5055 Parts 1879 | . 38 3 17 5 45 43 74 33 68 65 60 41 70 56 118 28 31 9 34 52 54 117 86 257 109 133 233 Haulers Intercepted 7 | . . . . . . . . . 1 . . . 2 . . . . . . . . 2 . . . 2 . Recyclers Shooed 4 | . 1 . . . 1 . . . . . 2 . . . . . . . . . . . . . . . . Parts Field Recycled . | . . . . . . . . . . . . . . . . . . . . . . . . . . . . Retrieved Matter . | . . . . . . . . . . . . . . . . . . . . . . . . . . . . Parts Self-Destructed 93 | . . . . . . . . . . . . . . . . 30 31 . 32 . . . . . . . . Prevented 6 | . . . . . . . . . . . . . . . . 4 2 . . . . . . . . . . Kills | -11 -10 -10 -10 -9 -8 -8 -8 -8 -7 -7 -6 -6 -5 -5 -5 -5 -5 -5 -4 -4 -4 -3 -3 -3 -3 -2 -1 ------- Run | Jun Mat Min Exi Min Mat Gar Mat Gar Fac Gar Fac Gar Fac Gar Fac Upp Upp War Pro Fac Gar Res Gar Res Gar Res Acc Combat Hostiles Destroyed 725 | . 12 1 14 11 18 20 24 22 20 34 24 25 25 30 40 14 18 3 25 14 27 42 29 71 43 44 75 Melee 1 | . . . . . . . . 1 . . . . . . . . . . . . . . . . . . . Guns 154 | . 12 1 . . 9 6 7 5 7 9 7 11 9 10 7 . 3 . 4 2 9 13 8 3 3 9 . Cannons 342 | . . . 2 2 3 2 17 5 11 13 9 9 10 12 23 11 9 1 9 10 11 14 18 57 28 18 38 AOE 122 | . . . 6 9 2 12 . 10 1 10 5 5 6 1 9 1 5 . 10 . 5 4 . 3 3 5 10 Classes Destroyed 21 | . 4 . 3 1 2 2 1 1 1 . 1 1 . . . . 1 . . . . 2 . 1 . . . Worker 10 | . 1 . . . 2 . 2 . 1 . . . . . . . . . . . . 1 . . . 2 1 Builder 7 | . . . . . 1 . . . 1 . . . . . . . . . . . . . . 1 . 4 . Hauler 7 | . . . . . . . . . 1 . . . 2 . . . . . . . . 2 . . . 2 . Recycler 2 | . . . . . . . . . . . 1 . . . . . . . . . . 1 . . . . . Operator 8 | . . . . . . 1 . . 1 . . . 1 . . . . . . . . 1 . 3 . . 1 Watcher 54 | . 3 . . . 3 1 5 . 1 . 2 1 7 . 5 . . . . . . 1 1 10 1 5 8 Swarmer 143 | . 5 . . 3 1 7 . 11 3 8 7 6 5 4 11 3 2 . 14 . 10 4 5 8 7 10 9 Cutter 14 | . . . . . . . . . . . . 4 . 4 . . . . . . 4 . . . . 2 . Saboteur 2 | . . . . . . . . . . . . . . . . . . . . . . 1 . . . . 1 Grunt 229 | . 7 1 5 1 11 8 12 4 4 16 7 5 7 9 8 5 11 . 2 3 4 13 12 17 25 6 26 Brawler 23 | . . . 1 . . 1 2 . . 1 . 4 . 1 1 1 1 . 3 . . 1 . . 4 . 2 Duelist 17 | . . . . . . . 1 . . 1 . 1 . . 3 . 1 . 2 . . 2 . . 4 2 . Protector 3 | . . . . . . . . . . . . . . . . . 1 . . . . 1 . . . 1 . Sentry 82 | . . . . . 6 . 8 4 3 7 5 2 4 8 3 2 1 . 2 3 3 3 2 10 1 1 4 Specialist 12 | . . . . . . 4 . . . . . . . . . . . . . . . . 4 2 . 2 . Hunter 54 | . . . 5 . . . 1 2 1 . 1 3 2 2 3 2 . . . . 2 3 4 8 . 8 7 Programmer 122 | . . . 3 . . . . . 9 . 4 . 7 2 11 . . . 1 8 2 12 2 24 2 11 24 Heavy 3 | . . . . . . . . . . . . . . . . . . . . . . . . 1 . 1 1 Behemoth 10 | . . . . . . . . 1 . 1 . . . . . 1 1 . 1 . 2 1 . 1 . . 1 Executioner 2 | . . . . . . . . . . . . . . . . . . . . . . 2 . . . . . Assembled 7 | . . . . 7 . . . . . . . . . . . . . . . . . . . . . . . Thug 1 | . . . . . . 1 . . . . . . . . . . . . . . . . . . . . . Savage 1 | . . . . . . 1 . . . . . . . . . . . . . . . . . . . . . Bouncer 1 | . . . . . . . . . . . . . . . . . . 1 . . . . . . . . . Marauder 2 | . . . . . . . . . . . . . . . . . . 2 . . . . . . . . . Best Kill Streak 12 | . 4 1 9 6 7 10 4 12 7 7 5 4 5 11 6 5 7 3 7 2 4 12 5 6 9 10 5 Combat Bots Only 12 | . 4 1 9 6 5 10 3 12 4 7 4 4 5 11 6 5 7 3 7 2 4 8 5 5 9 8 5 Max Kills in Single Turn 8 | . 2 1 8 3 3 3 2 3 2 4 3 2 2 2 3 2 2 1 3 1 3 5 1 4 2 3 4 Gunslinging 1 | . 1 . . . . . . . . . . . . . . . . . . . . . . . . . . Exploded 5 | . . . 5 3 1 3 . 2 1 4 3 2 2 1 3 1 2 . 3 . 3 1 . 3 1 2 3 Melee 1 | . . . . . . . . 1 . . . . . . . . . . . . . . . . . . . Uniques/NPCs Destroyed . | . . . . . . . . . . . . . . . . . . . . . . . . . . . . Combat | -11 -10 -10 -10 -9 -8 -8 -8 -8 -7 -7 -6 -6 -5 -5 -5 -5 -5 -5 -4 -4 -4 -3 -3 -3 -3 -2 -1 -------- Run | Jun Mat Min Exi Min Mat Gar Mat Gar Fac Gar Fac Gar Fac Gar Fac Upp Upp War Pro Fac Gar Res Gar Res Gar Res Acc Damage Taken 16209 | . 223 31 256 77 651 248 507 963 773 662 441 342 714 479 895 273 261 748 299 273 517 1595 597 1483 426 1033 1442 Core 11863 | . 172 31 175 57 367 155 321 561 515 491 341 265 584 377 700 140 113 499 218 216 408 1260 465 1168 341 803 1120 Absorbed by Shields 4122 | . . . . . . 12 . . . 191 25 24 4 . . . . . . . 8 110 498 430 450 878 1492 Reduced by Siege Mode 12 | . . . . . . . . . . . . . . . . . . . . 4 . . . . . 4 4 Redirected to Core 10491 | . 140 . 156 38 356 112 255 561 384 376 289 265 448 345 599 140 77 499 195 201 363 1167 429 1069 245 776 1006 Redirected to Shielding 345 | . . . . . . . . . . . . . . . 14 90 115 108 18 . . . . . . . . Regen/Repaired (Parts) 528 | . . . . . 91 . . . 293 . . . 9 . . . . . . 126 . . . 9 . . . Core Remaining (%) 93 | 100 . . . 96 . . . 92 . 100 . 100 . . . . . . 94 . 100 . . . 100 56 100 Volleys Fired 2146 | . 30 1 12 6 64 38 56 50 78 87 93 79 97 83 132 39 41 11 45 55 56 119 99 299 115 127 234 Largest 2 | . 2 2 1 1 1 1 2 2 2 2 1 1 2 1 1 1 1 1 1 1 1 1 1 2 1 1 1 Hottest 250 | . 90 90 250 250 250 250 90 250 250 250 250 250 250 250 250 250 250 120 250 120 250 250 250 250 250 250 250 Shots Fired 2341 | . 60 2 12 6 64 38 112 87 134 95 93 79 101 83 132 39 41 11 45 55 57 119 99 300 115 127 235 Gun 747 | . 60 2 . . 56 27 56 41 60 35 37 48 55 37 52 . 7 . 9 12 23 51 31 15 7 26 . Cannon 1594 | . . . 12 6 8 11 56 46 74 60 56 31 46 46 80 39 34 11 36 43 34 68 68 285 108 101 235 Launcher . | . . . . . . . . . . . . . . . . . . . . . . . . . . . . Special . | . . . . . . . . . . . . . . . . . . . . . . . . . . . . Kinetic 425 | . 56 . . . 56 27 112 70 60 35 9 . . . . . . . . . . . . . . . . Thermal 1802 | . . . 12 6 8 11 . 17 74 60 84 79 101 83 132 39 41 11 45 55 57 119 99 300 115 106 148 Explosive . | . . . . . . . . . . . . . . . . . . . . . . . . . . . . Electromagnetic 114 | . 4 2 . . . . . . . . . . . . . . . . . . . . . . . 21 87 Robot Hit Streak 51 | . 21 6 11 6 11 12 15 20 32 41 35 49 19 28 25 17 40 10 17 29 20 34 46 41 51 46 41 Robot Miss Streak 4 | . 2 . 2 4 4 3 4 1 2 3 2 2 2 4 4 1 1 1 2 1 2 1 1 2 3 1 3 Penetration Max 1 | . . . . . 1 1 1 1 1 1 1 . . . . . . . . . . . . . . . . Secondary Targets 2 | . 2 . . . . . . . . . . . . . . . . . . . . . . . . . . Max Gunslinging Chain 1 | . 1 . . . . . . . . . . . . . . . . . . . . . . . . . . Capacitor 1746 | . . . . . . . . . . 49 84 79 93 83 132 39 41 11 45 55 57 119 99 298 101 126 235 Shots Hit Robots 1931 | . 48 2 11 2 49 36 80 79 89 80 79 62 66 71 100 35 41 10 43 43 51 99 91 240 110 116 198 Core Hits 1293 | . 24 2 19 18 39 42 43 41 34 68 39 39 47 42 59 15 40 5 47 18 43 96 51 98 92 96 136 Critical Kills 46 | . . . . . 1 5 9 2 1 1 3 . 1 1 1 1 . 2 . 2 1 1 1 10 . 2 1 Critical Parts Destroyed 22 | . 1 . . . . 4 9 5 . 2 1 . . . . . . . . . . . . . . . . Critical Strikes 93 | . 1 . . . 1 9 26 16 1 3 4 2 3 2 1 1 . 2 . 2 1 1 1 10 . 3 3 Burn 5 | . . . . . . . . . . . . 2 2 1 . . . . . . . . . . . . . Meltdown 26 | . . . . . . . . . 1 . 1 . 1 1 1 1 . 2 . 2 1 1 1 10 . 2 1 Destroy 46 | . 1 . . . 1 9 20 9 . 3 3 . . . . . . . . . . . . . . . . Blast 13 | . . . . . . . 6 7 . . . . . . . . . . . . . . . . . . . Corrupt 3 | . . . . . . . . . . . . . . . . . . . . . . . . . . 1 2 Melee Attacks 27 | . . . . . 6 5 10 5 . . . . . . . . . . 1 . . . . . . . . Impact . | . . . . . . . . . . . . . . . . . . . . . . . . . . . . Slashing 26 | . . . . . 6 5 10 5 . . . . . . . . . . . . . . . . . . . Piercing 1 | . . . . . . . . . . . . . . . . . . . 1 . . . . . . . . Sneak Attacks 1 | . . . . . . . . . . . . . . . . . . . 1 . . . . . . . . Combat Hostiles . | . . . . . . . . . . . . . . . . . . . . . . . . . . . . Follow-up Attacks . | . . . . . . . . . . . . . . . . . . . . . . . . . . . . Damage Inflicted 106911 | . 686 46 931 548 1742 1583 1834 2298 3126 4121 3752 2780 3285 3436 5111 2093 2663 525 2747 2577 2963 6801 5114 15716 8009 7728 14696 Guns 17640 | . 648 46 . . 910 455 307 340 1024 817 981 1402 1401 1205 1439 . 286 . 350 364 827 1814 1189 550 317 968 . Cannons 72979 | . . . 114 74 189 222 1460 1151 2063 2174 2224 1166 1316 1779 3377 2068 1627 525 1615 2213 1673 3472 3592 14886 6326 5294 12379 Explosions 15988 | . 38 . 817 474 640 866 67 583 39 1130 547 212 568 452 295 25 750 . 776 . 463 1515 333 280 1335 1466 2317 Melee 270 | . . . . . . 40 . 224 . . . . . . . . . . 6 . . . . . . . . Ramming 34 | . . . . . 3 . . . . . . . . . . . . . . . . . . . 31 . . Kinetic 6960 | . 578 . . . 910 455 1767 1144 1024 817 265 . . . . . . . . . . . . . . . . Thermal 94572 | . 38 . 931 548 778 1088 67 930 2102 3304 3271 2780 3285 3436 5111 2093 2663 525 2741 2577 2963 6801 5114 15716 7978 6868 10864 Explosive 318 | . . . . . . . . . . . 216 . . . . . . . . . . . . . . . 102 Electromagnetic 4757 | . 70 46 . . 51 . . . . . . . . . . . . . . . . . . . . 860 3730 Impact . | . . . . . . . . . . . . . . . . . . . . . . . . . . . . Slashing 264 | . . . . . . 40 . 224 . . . . . . . . . . . . . . . . . . . Piercing 6 | . . . . . . . . . . . . . . . . . . . 6 . . . . . . . . Highest Corruption 4 | . . . 1 1 1 1 . . 1 . 3 . 1 . 1 . . . . 1 1 . . 4 . 1 1 Average Corruption 1 | . . . 1 1 1 1 . . 1 . 1 . 1 . 1 . . . . 1 1 . . 1 . 1 1 Corruption Purged 25 | . . . . 1 . 1 . . 1 . 3 . 3 . 1 . . . . . 1 . . 9 . 1 4 Corruption Blocked . | . . . . . . . . . . . . . . . . . . . . . . . . . . . . Effects 27 | . . . 2 3 2 1 . . . . . . 4 . 1 . . . . 2 1 . . 5 . 3 3 Message Errors 4 | . . . . 1 1 . . . . . . . 1 . . . . . . . . . . 1 . . . Matter Fused 10 | . . . 2 1 . 1 . . . . . . 2 . 1 . . . . 1 . . . 1 . 1 . Heat Flow Errors 2 | . . . . . . . . . . . . . 1 . . . . . . . . . . 1 . . . Energy Discharges 3 | . . . . . 1 . . . . . . . . . . . . . . 1 . . . 1 . . . Parts Rejected 1 | . . . . . . . . . . . . . . . . . . . . . . . . . . . 1 Data Loss (minor) 3 | . . . . . . . . . . . . . . . . . . . . . . . . . . 2 1 Data Loss (major) 1 | . . . . . . . . . . . . . . . . . . . . . . . . 1 . . . Misfires 2 | . . . . . . . . . . . . . . . . . . . . . 1 . . . . . 1 Alerts 1 | . . . . 1 . . . . . . . . . . . . . . . . . . . . . . . Overload Shots . | . . . . . . . . . . . . . . . . . . . . . . . . . . . . Overflow Damage 3950 | . . . . 1 . . 27 131 100 56 116 46 58 . 57 67 27 . . 141 86 108 107 1273 112 286 1151 Projectiles 3738 | . . . . . . . 15 4 100 56 116 46 18 . 57 67 27 . . 141 69 103 105 1273 112 278 1151 Explosions 106 | . . . . 1 . . 12 21 . . . . 40 . . . . . . . 17 5 2 . . 8 . Melee 106 | . . . . . . . . 106 . . . . . . . . . . . . . . . . . . . Knockbacks 8 | . . . . . . . 8 . . . . . . . . . . . . . . . . . . . . Impact . | . . . . . . . . . . . . . . . . . . . . . . . . . . . . Kinetic 7 | . . . . . . . 7 . . . . . . . . . . . . . . . . . . . . Secondary 1 | . . . . . . . 1 . . . . . . . . . . . . . . . . . . . . Self-Inflicted Damage 540 | . . . 11 5 21 21 . 7 21 44 1 19 14 . 27 . 45 . . . 7 30 12 . 53 52 150 Shots 64 | . . . 1 1 2 4 . 1 3 5 1 2 1 . 3 . 7 . . . 2 6 2 . 9 6 8 Rammed 2 | . . . . . . . . . . . . . . . . . . . . . . . . . 2 . . Targets Rammed 4 | . . . . . 2 . . . . . . . . . . . . . . . . . . . 2 . . Kicked 2 | . . . . . 2 . . . . . . . . . . . . . . . . . . . . . . Crushed . | . . . . . . . . . . . . . . . . . . . . . . . . . . . . Highest Temperature 1069 | . 39 3 498 184 392 430 . 429 584 524 349 242 254 357 230 306 459 186 392 120 150 320 961 . 1069 1004 1010 Average Temperature 145 | . 16 3 190 76 147 134 . 162 113 91 39 68 100 103 67 116 155 80 120 73 51 104 481 . 325 453 384 Received Heat Transfer 2869 | . 126 . . 6 360 138 207 153 84 237 118 99 150 144 93 81 75 . 45 72 69 220 117 134 53 8 80 Effects 33 | . . . 2 . . 1 . . 3 2 . . . . . . . . . . . 1 10 . 3 6 5 Shutdowns 12 | . . . 1 . . 1 . . 1 . . . . . . . . . . . . . 5 . . 4 . Energy Bleed 5 | . . . . . . . . . . 1 . . . . . . . . . . . . 1 . . 1 2 Interference 4 | . . . 1 . . . . . 1 . . . . . . . . . . . . 1 1 . . . . Matter Decay 2 | . . . . . . . . . . . . . . . . . . . . . . . . . 1 . 1 Short Circuit 3 | . . . . . . . . . . . . . . . . . . . . . . . . . 1 . 2 Damage (minor) 1 | . . . . . . . . . . . . . . . . . . . . . . . 1 . . . . Damage (major) 3 | . . . . . . . . . . . . . . . . . . . . . . . 2 . . 1 . Damage (core) 3 | . . . . . . . . . 1 1 . . . . . . . . . . . . . . 1 . . Siege Activations 6 | . . . . . . . . . . . . . . . . . . . . 2 . . . 1 . 1 2 Total Turns 38 | . . . . . . . . . . . . . . . . . . . . 14 . . . 6 . 4 14 Longest Duration 12 | . . . . . . . . . . . . . . . . . . . . 12 . . . 6 . 4 10 Robots Corrupted 17 | . . . . . . . . . . . . . . . . . . . . . . . . . . 3 14 Combat Hostiles 16 | . . . . . . . . . . . . . . . . . . . . . . . . . . 3 13 Parts Fried 43 | . 1 . . . . . . . . . . . . . . . . . . . . . . . . 10 32 Impact Corruptions . | . . . . . . . . . . . . . . . . . . . . . . . . . . . . Robots Melted 105 | . . . 6 . 4 . . 1 1 3 4 . 2 7 1 2 1 2 2 2 2 14 3 11 13 10 14 Combat Hostiles 90 | . . . 6 . 4 . . 1 1 2 3 . . 7 1 2 1 2 2 2 2 11 3 8 9 9 14 Parts Melted 527 | . . . 29 2 13 19 . 10 4 21 11 7 18 15 11 4 17 4 16 3 17 74 16 54 38 49 75 Heat Transferred 140028 | . 50 . 5360 2800 4160 4878 100 3982 2016 8513 4559 3722 4905 4840 5410 1615 5400 370 6101 1591 4385 12255 5024 10523 11575 11053 14841 Parts Sabotaged 5 | . . . . . . . . . . . . . . . . . . . . . . 3 . . . 2 . Parts Stolen . | . . . . . . . . . . . . . . . . . . . . . . . . . . . . Parts Stripped . | . . . . . . . . . . . . . . . . . . . . . . . . . . . . Power Chain Reactions 2 | . 1 . . . . . . . . . . . . . . . . . . . . . . . . . 1 Missiles Intercepted . | . . . . . . . . . . . . . . . . . . . . . . . . . . . . Alert | -11 -10 -10 -10 -9 -8 -8 -8 -8 -7 -7 -6 -6 -5 -5 -5 -5 -5 -5 -4 -4 -4 -3 -3 -3 -3 -2 -1 ------- Run | Jun Mat Min Exi Min Mat Gar Mat Gar Fac Gar Fac Gar Fac Gar Fac Upp Upp War Pro Fac Gar Res Gar Res Gar Res Acc Peak Influence 1313 | . 205 51 . 138 302 799 403 893 481 1102 682 918 516 1014 618 . . . . 115 996 640 1225 599 1313 888 722 Initial 643 | . . 31 . . . . 335 106 406 32 501 39 417 159 460 . . . . . 33 487 349 599 93 643 465 Average 302 | . 80 31 . 61 39 444 109 502 107 597 293 525 174 660 308 . . . . 28 469 408 812 133 711 574 377 Maximum Alert Level 4 | . 1 . . . 1 3 2 3 2 4 2 3 2 3 2 . . . . . 3 2 4 2 4 3 3 Low Security (%) 47 | 100 97 100 . 100 95 17 83 13 80 8 38 22 58 15 35 . . . . 100 19 4 . 81 9 . 17 Level 1 18 | . 2 . . . 4 10 16 1 10 22 32 18 29 2 26 . . . . . 28 40 10 16 23 6 30 Level 2 25 | . . . . . . 60 . 69 9 27 28 25 11 35 37 . . . . . 29 55 20 1 25 83 51 Level 3 7 | . . . . . . 11 . 15 . 33 . 33 . 46 . . . . . . 22 . 54 . 15 10 . Level 4 1 | . . . . . . . . . . 8 . . . . . . . . . . . . 14 . 25 . . Level 5 . | . . . . . . . . . . . . . . . . . . . . . . . . . . . . High Security . | . . . . . . . . . . . . . . . . . . . . . . . . . . . . Max Security . | . . . . . . . . . . . . . . . . . . . . . . . . . . . . Squads Dispatched 106 | . 3 . . 1 4 . 3 . 14 . 5 . 14 . 7 . 1 . . 6 . 9 . 17 . 8 14 Investigation 24 | . 3 . . 1 3 . 2 . 1 . . . 3 . 1 . . . . 2 . 1 . 4 . . 3 Extermination 53 | . . . . . . . . . 9 . 4 . 4 . 5 . . . . 4 . 5 . 10 . 3 9 Reinforcement 17 | . . . . . 1 . 1 . 1 . 1 . 5 . . . . . . . . . . 3 . 4 1 Assault 9 | . . . . . . . . . . . . . 2 . 1 . 1 . . . . 3 . . . 1 1 Garrison 3 | . . . . . . . . . 3 . . . . . . . . . . . . . . . . . . Intercept . | . . . . . . . . . . . . . . . . . . . . . . . . . . . . Searches Triggered . | . . . . . . . . . . . . . . . . . . . . . . . . . . . . Construction Impeded 2 | . . . . . . . . . . . . . 1 . . . . . . . . . . . . 1 . Haulers Reinforced 1 | . . . . . . . . . . . . . 1 . . . . . . . . . . . . . . Active Scanning Responses . | . . . . . . . . . . . . . . . . . . . . . . . . . . . . Cargo Convoy Interrupts 3 | . . . . . . . . . . . 1 . . . . . . . . . . 1 . . . 1 . Stealth | -11 -10 -10 -10 -9 -8 -8 -8 -8 -7 -7 -6 -6 -5 -5 -5 -5 -5 -5 -4 -4 -4 -3 -3 -3 -3 -2 -1 --------- Run | Jun Mat Min Exi Min Mat Gar Mat Gar Fac Gar Fac Gar Fac Gar Fac Upp Upp War Pro Fac Gar Res Gar Res Gar Res Acc Distress Signals 20 | . 1 . . . 5 . 1 . . . . . 3 . . . . . . 1 . 2 . 3 . 2 2 Communications Jammed 155 | . . . . . 31 . 25 . 7 . 2 . 9 . 5 . . . . 4 . 25 4 5 . 33 5 Distress Signals 147 | . . . . . 31 . 25 . 7 . 2 . 9 . 5 . . . . 4 . 22 4 5 . 33 . Times Spotted 867 | . 17 2 9 14 30 25 29 25 26 40 25 27 42 25 51 14 19 3 24 20 32 50 31 91 44 62 90 Peak Tracking Total 12 | . 3 2 10 9 7 7 4 12 3 7 3 3 6 4 7 3 7 3 7 5 5 9 5 4 7 7 5 Tactical Retreats 28 | . . . . . 2 . . 1 1 2 . . . . 1 . . . . . 1 3 1 2 2 3 9 Traps | -11 -10 -10 -10 -9 -8 -8 -8 -8 -7 -7 -6 -6 -5 -5 -5 -5 -5 -5 -4 -4 -4 -3 -3 -3 -3 -2 -1 ------- Run | Jun Mat Min Exi Min Mat Gar Mat Gar Fac Gar Fac Gar Fac Gar Fac Upp Upp War Pro Fac Gar Res Gar Res Gar Res Acc Traps Triggered 37 | . . . . . 1 1 3 1 2 9 1 1 1 7 . . . 3 . . 1 . . 5 . . 1 Indirectly . | . . . . . . . . . . . . . . . . . . . . . . . . . . . . Trap Hack Attempts . | . . . . . . . . . . . . . . . . . . . . . . . . . . . . Triggered . | . . . . . . . . . . . . . . . . . . . . . . . . . . . . Disarmed . | . . . . . . . . . . . . . . . . . . . . . . . . . . . . Reprogrammed . | . . . . . . . . . . . . . . . . . . . . . . . . . . . . Reused . | . . . . . . . . . . . . . . . . . . . . . . . . . . . . Traps Extracted . | . . . . . . . . . . . . . . . . . . . . . . . . . . . . Installed . | . . . . . . . . . . . . . . . . . . . . . . . . . . . . Triggered 2 | . . . . . . . . . . . 1 . . . . 1 . . . . . . . . . . . Machines | -11 -10 -10 -10 -9 -8 -8 -8 -8 -7 -7 -6 -6 -5 -5 -5 -5 -5 -5 -4 -4 -4 -3 -3 -3 -3 -2 -1 ---------- Run | Jun Mat Min Exi Min Mat Gar Mat Gar Fac Gar Fac Gar Fac Gar Fac Upp Upp War Pro Fac Gar Res Gar Res Gar Res Acc Machines Disabled 50 | . . . 4 . 2 1 3 2 5 3 2 1 4 . 2 . 1 . 1 . 5 1 3 4 2 . 4 Max in Single Turn 2 | . . . 1 . 1 1 2 1 1 1 2 1 2 . 1 . 1 . 1 . 2 1 1 1 1 . 1 Garrison Access 9 | . . . . . . . . . . . . . 1 . 1 . . . . 1 . . . 2 . 1 3 Garrison Relay 5 | . . . . . . . . . . 1 . . . . . . . . . . 3 . . . 1 . . Machines Repaired . | . . . . . . . . . . . . . . . . . . . . . . . . . . . . Machines Sabotaged . | . . . . . . . . . . . . . . . . . . . . . . . . . . . . Overloaded Fab Kills . | . . . . . . . . . . . . . . . . . . . . . . . . . . . . Hacking | -11 -10 -10 -10 -9 -8 -8 -8 -8 -7 -7 -6 -6 -5 -5 -5 -5 -5 -5 -4 -4 -4 -3 -3 -3 -3 -2 -1 --------- Run | Jun Mat Min Exi Min Mat Gar Mat Gar Fac Gar Fac Gar Fac Gar Fac Upp Upp War Pro Fac Gar Res Gar Res Gar Res Acc Machines Accessed 195 | . 9 . 1 1 12 3 13 2 23 4 1 4 17 3 16 . . . . 16 3 5 1 29 2 7 23 Terminals 113 | . 7 . . . 8 3 7 2 9 4 . 4 8 3 7 . . . . 12 3 1 1 16 2 1 15 Fabricators 15 | . . . . . . . . . 4 . . . 2 . 5 . . . . 1 . . . 3 . . . Repair Stations 13 | . . . . . 1 . 1 . 2 . . . 2 . . . . . . 1 . . . 1 . 2 3 Recycling Units 21 | . 2 . . . 1 . 2 . 3 . . . 3 . 1 . . . . . . 2 . 3 . 2 2 Scanalyzers 10 | . . . . . 1 . 2 . 2 . . . . . 1 . . . . . . 1 . 2 . 1 . Garrison Access 21 | . . . . . 1 . 1 . 3 . 1 . 2 . 2 . . . . 2 . 1 . 4 . 1 3 Total Hacks 621 | . 31 . 1 1 53 9 32 4 69 8 3 8 55 6 51 . . . . 77 5 16 3 110 2 18 59 Successful 391 | . 18 . 1 1 38 6 20 2 43 4 3 4 33 3 31 . . . . 58 3 10 1 70 2 10 30 Failed 228 | . 13 . . . 14 3 12 2 26 4 . 4 22 3 20 . . . . 18 2 6 2 40 . 8 29 Catastrophic 28 | . 1 . . . 3 2 3 . 2 . . 1 3 . 1 . . . . 1 . 1 . 5 . . 5 Database Lockouts 2 | . . . . . 1 . . . . . . . . . . . . . . 1 . . . . . . . Manual 276 | . 13 . 1 . 33 6 12 . 37 . 2 . 25 . 28 . . . . 49 . 4 . 41 . 5 20 Terminals 382 | . 24 . . . 40 9 19 4 28 8 . 8 28 6 28 . . . . 67 5 3 3 55 2 3 42 Fabricators 35 | . . . . . . . . . 9 . . . 5 . 10 . . . . 3 . . . 8 . . . Repair Stations 33 | . . . . . 5 . 1 . 6 . . . 5 . . . . . . 2 . . . 3 . 5 6 Recycling Units 49 | . 7 . . . 1 . 3 . 6 . . . 8 . 3 . . . . . . 6 . 8 . 3 4 Scanalyzers 53 | . . . . . 4 . 8 . 5 . . . . . 6 . . . . . . 3 . 24 . 3 . Garrison Access 67 | . . . . . 3 . 1 . 15 . 3 . 9 . 4 . . . . 5 . 4 . 12 . 4 7 Terminal Hacks 153 | . 8 . 1 1 17 5 4 2 9 4 . 4 11 3 10 . . . . 35 3 1 1 18 2 . 14 Record 2 | . . . . . . . . . . . . . . . . . . . . . . . . . . . 2 Part Schematic 15 | . . . . . 1 . . . . . . . 2 . 1 . . . . 10 . . . 1 . . . Robot Analysis 13 | . . . . . 2 1 . . 2 . . . 2 . 1 . . . . 4 . . . 1 . . . Prototype ID Bank 13 | . 3 . . . 1 . . . 2 . . . 2 . . . . . . 2 . . . 3 . . . Open Door 9 | . . . . 1 . . . 1 . 1 . 1 . . . . . . . . 1 . . . . . 4 Level Access Points 3 | . . . . . . . . . 1 . . . . . . . . . . 1 . . . 1 . . . Branch Access Points 5 | . . . . . 1 . 1 . . . . . 1 . . . . . . 1 . . . 1 . . . Emergency Access Points 7 | . . . . . . 1 . . . 1 . 1 . 1 . . . . . 1 1 . . . 1 . . Machine Index 2 | . . . . . . . . . . . . . . . . . . . . 1 . . . . . . 1 Terminal Index 5 | . . . . . 1 . . . . . . . . . 1 . . . . 1 . . . 1 . . 1 Fabricator Index 1 | . . . . . . . . . . . . . . . 1 . . . . . . . . . . . . Garrison Index 2 | . . . . . . . . . . . . . . . . . . . . . . . . 1 . . 1 Alert Level 6 | . 1 . . . 4 1 . . . . . . . . . . . . . . . . . . . . . Unreport Threat 15 | . . . . . 2 . 3 . 1 . . . 1 . 2 . . . . 1 . 1 . 2 . . 2 Locate Traps 17 | . 1 . . . 1 . . . 2 . . . 2 . 3 . . . . 5 . . . 3 . . . Dispatch Records 1 | . . . . . . . . . . . . . . . . . . . . 1 . . . . . . . Patrol Status 1 | . . . . . . . . . . . . . . . . . . . . 1 . . . . . . . Transport Status 1 | . . . . . . . . . . . . . . . . . . . . 1 . . . . . . . Reinforcement Status 1 | . . . . . 1 . . . . . . . . . . . . . . . . . . . . . . Recall Extermination 1 | . . . . . . . . . . . . . . . . . . . . . . . . 1 . . . Hauler Manifests 4 | . 1 . . . 1 . . . . . . . . . . . . . . 1 . . . 1 . . . Registered Components 5 | . 1 . . . . . . . 1 . . . 1 . . . . . . 1 . . . 1 . . . Registered Prototypes 4 | . 1 . . . 1 . . . . . . . . . . . . . . 1 . . . . . . 1 Zone Layout 7 | . . . . . 1 . . . . . . . . . 1 . . . . 2 . . . 1 . . 2 Garrison Registry 3 | . . . . . . 1 . 1 . . . . . . . . . . . . . . 1 . . . . Patrol Navigation 6 | . . . . . . 1 . . . 1 . 1 . 1 . . . . . . 1 . . . 1 . . Security Stations 3 | . . . . . . . . . . 1 . 1 . 1 . . . . . . . . . . . . . EX-Prototype ID Bank 1 | . . . 1 . . . . . . . . . . . . . . . . . . . . . . . . Fabricator Hacks 16 | . . . . . . . . . 3 . . . 2 . 5 . . . . 2 . . . 4 . . . Network Status 7 | . . . . . . . . . 2 . . . 2 . 2 . . . . . . . . 1 . . . Load Schematic 5 | . . . . . . . . . . . . . . . 2 . . . . 1 . . . 2 . . . Build 4 | . . . . . . . . . 1 . . . . . 1 . . . . 1 . . . 1 . . . Repair Station Hacks 20 | . . . . . 4 . . . 4 . . . 2 . . . . . . 2 . . . 2 . 2 4 Scan Component 10 | . . . . . 2 . . . 2 . . . 1 . . . . . . 1 . . . 1 . 1 2 Repair 10 | . . . . . 2 . . . 2 . . . 1 . . . . . . 1 . . . 1 . 1 2 Recycling Unit Hacks 22 | . 3 . . . 1 . 2 . 3 . . . 3 . 1 . . . . . . 2 . 3 . 2 2 Report Inventory 21 | . 2 . . . 1 . 2 . 3 . . . 3 . 1 . . . . . . 2 . 3 . 2 2 Retrieve Components 1 | . 1 . . . . . . . . . . . . . . . . . . . . . . . . . . Scanalyzer 44 | . . . . . 4 . 8 . 3 . . . . . 4 . . . . . . 2 . 20 . 3 . Insert Component 19 | . . . . . 2 . 4 . 2 . . . . . 2 . . . . . . 1 . 6 . 2 . Analyze 25 | . . . . . 2 . 4 . 1 . . . . . 2 . . . . . . 1 . 14 . 1 . Garrison Access Hacks 24 | . . . . . 1 . 1 . 3 . 1 . 2 . 2 . . . . 3 . 1 . 6 . 1 3 Unlock Access 16 | . . . . . 1 . 1 . 3 . 1 . 2 . 1 . . . . 2 . 1 . 4 . . . Seal Access 8 | . . . . . . . . . . . . . . . 1 . . . . 1 . . . 2 . 1 3 Unauthorized Hacks 112 | . 7 . . . 11 1 5 . 18 . 2 . 13 . 9 . . . . 16 . 4 . 17 . 2 7 Terminals 60 | . 6 . . . 9 1 3 . 2 . . . 4 . 5 . . . . 13 . . . 11 . 1 5 Track 20 | . 4 . . . 3 . 1 . . . . . 2 . 1 . . . . 5 . . . 4 . . . Assimilate 9 | . . . . . 2 . . . 1 . . . . . . . . . . 1 . . . 3 . . 2 Botnet 27 | . 2 . . . 3 1 2 . 1 . . . 2 . 3 . . . . 6 . . . 3 . 1 3 Operators 4 | . . . . . 1 . . . . . . . . . 1 . . . . 1 . . . 1 . . . Fabricators 10 | . . . . . . . . . 5 . . . . . 3 . . . . 1 . . . 1 . . . Report 1 | . . . . . . . . . 1 . . . . . . . . . . . . . . . . . . Prioritize 2 | . . . . . . . . . . . . . . . . . . . . 1 . . . 1 . . . Fabnet 5 | . . . . . . . . . 2 . . . . . 3 . . . . . . . . . . . . Haulers 1 | . . . . . . . . . 1 . . . . . . . . . . . . . . . . . . Download 1 | . . . . . . . . . 1 . . . . . . . . . . . . . . . . . . Repair Stations 3 | . . . . . 1 . 1 . . . . . 1 . . . . . . . . . . . . . . Mechanics 3 | . . . . . 1 . 1 . . . . . 1 . . . . . . . . . . . . . . Recycling Units 11 | . 1 . . . . . 1 . 3 . . . 2 . . . . . . . . 1 . 1 . 1 1 Monitor 1 | . . . . . . . . . 1 . . . . . . . . . . . . . . . . . . Reject 2 | . . . . . . . . . 1 . . . 1 . . . . . . . . . . . . . . Recyclers 7 | . . . . . . . 1 . 1 . . . 1 . . . . . . . . 1 . 1 . 1 1 Tunnel 1 | . 1 . . . . . . . . . . . . . . . . . . . . . . . . . . Scanalyzers 1 | . . . . . . . . . . . . . . . . . . . . . . . . 1 . . . Extract 1 | . . . . . . . . . . . . . . . . . . . . . . . . 1 . . . Garrison Access 27 | . . . . . 1 . . . 8 . 2 . 6 . 1 . . . . 2 . 3 . 3 . . 1 Decoy 7 | . . . . . . . . . 2 . . . 2 . . . . . . 1 . 1 . 1 . . . Redirect 4 | . . . . . . . . . 2 . . . 1 . . . . . . . . . . 1 . . . Reprogram 2 | . . . . . . . . . 1 . . . 1 . . . . . . . . . . . . . . Intercept 5 | . . . . . . . . . 2 . 1 . 1 . . . . . . . . 1 . . . . . Watchers 9 | . . . . . 1 . . . 1 . 1 . 1 . 1 . . . . 1 . 1 . 1 . . 1 Data Cores Recovered 6 | . . . . . . . . . 1 . . . 1 . . . . . . . . 1 . 2 . . 1 Used 1 | . . . . . . . . . . . . . . . . . . . . . . . . 1 . . . Hacking Detections 155 | . 7 . . . 11 3 10 2 18 3 1 4 15 1 13 . . . . 11 1 5 1 26 . 4 19 Full Trace Events 20 | . 2 . . . 3 1 3 . . . . . 1 . 1 . . . . 2 . 1 . 3 . . 3 Feedback Events 2 | . . . . . 1 . . . . . . . . . . . . . . . . . . . . . 1 Corruption 2 | . . . . . 1 . . . . . . . . . . . . . . . . . . . . . 1 Feedback Blocked . | . . . . . . . . . . . . . . . . . . . . . . . . . . . . Robot Schematics Acquired . | . . . . . . . . . . . . . . . . . . . . . . . . . . . . Robots Built . | . . . . . . . . . . . . . . . . . . . . . . . . . . . . Authchips . | . . . . . . . . . . . . . . . . . . . . . . . . . . . . Time . | . . . . . . . . . . . . . . . . . . . . . . . . . . . . Total Robot Build Rating . | . . . . . . . . . . . . . . . . . . . . . . . . . . . . Part Schematics Acquired 32 | . . . . . 3 . 3 . 2 . . . 2 . 3 . . . . 9 . 1 . 8 . 1 . Parts Built 7 | . . . . . . . . . 1 . . . . . 2 . . . . 2 . . . 2 . . . Authchips . | . . . . . . . . . . . . . . . . . . . . . . . . . . . . Time 131 | . . . . . . . . . 58 . . . . . 31 . . . . 23 . . . 19 . . . Total Part Build Rating 49 | . . . . . . . . . 7 . . . . . 10 . . . . 18 . . . 14 . . . Parts Repaired 10 | . . . . . 2 . . . 2 . . . 1 . . . . . . 1 . . . 1 . 1 2 Time 411 | . . . . . 88 . . . 63 . . . 22 . . . . . . 40 . . . 28 . 86 84 Parts Recycled . | . . . . . . . . . . . . . . . . . . . . . . . . . . . . Recycled Matter . | . . . . . . . . . . . . . . . . . . . . . . . . . . . . Retrieved Matter . | . . . . . . . . . . . . . . . . . . . . . . . . . . . . Retrieved Components 2 | . 2 . . . . . . . . . . . . . . . . . . . . . . . . . . Parts Scanalyzed 17 | . . . . . 2 . 3 . 2 . . . . . 2 . . . . . . 1 . 6 . 1 . Part Schematics Acquired 16 | . . . . . 2 . 3 . 1 . . . . . 2 . . . . . . 1 . 6 . 1 . Parts Damaged 1 | . . . . . . . 1 . . . . . . . . . . . . . . . . . . . . Bothacking | -11 -10 -10 -10 -9 -8 -8 -8 -8 -7 -7 -6 -6 -5 -5 -5 -5 -5 -5 -4 -4 -4 -3 -3 -3 -3 -2 -1 ------------ Run | Jun Mat Min Exi Min Mat Gar Mat Gar Fac Gar Fac Gar Fac Gar Fac Upp Upp War Pro Fac Gar Res Gar Res Gar Res Acc Used RIF Installer 9 | . . . . . . 2 . 1 . 2 . 1 . 1 . . . . . . 1 . . . 1 . . Coupler Efficiency 1 | . . . . . . . . . . . . 1 . . . . . . . . . . . . . . . Hotswap 1 | . . . . . . . . . . 1 . . . . . . . . . . . . . . . . . Code Merge 2 | . . . . . . . . . . . . . . . . . . . . . 1 . . . 1 . . Patrol Navigation 1 | . . . . . . . . 1 . . . . . . . . . . . . . . . . . . . Alert ID Control 1 | . . . . . . 1 . . . . . . . . . . . . . . . . . . . . . Structural Interface 1 | . . . . . . . . . . . . . . 1 . . . . . . . . . . . . . Program Shield 1 | . . . . . . . . . . 1 . . . . . . . . . . . . . . . . . Robots Hacked 19 | . . . . . . . . . . . 2 . 1 . . . 1 . 2 1 3 3 1 4 1 . . Non-combat . | . . . . . . . . . . . . . . . . . . . . . . . . . . . . Combat 19 | . . . . . . . . . . . 2 . 1 . . . 1 . 2 1 3 3 1 4 1 . . Robot Hacks Applied . | . . . . . . . . . . . . . . . . . . . . . . . . . . . . Relay Couplers Released 11 | . . . . . . . . . . 2 . . . . 1 . . . . . 5 . . . 3 . . Machine Destruction 8 | . . . . . . . . . . 2 . . . . . . . . . . 5 . . . 1 . . Programmers 3 | . . . . . . . . . . . . . . . 1 . . . . . . . . . 2 . . Fabnet Peak Effective % 9 | . . . . . . . . . . . 6 6 2 2 2 2 2 2 9 9 9 3 3 3 3 . . Autooverrided 19 | . . . . . . . . . . . 2 . 1 . . . 1 . 2 1 3 3 1 4 1 . . Robots Rewired 32 | . . . . . . . . . . 3 . 14 . 3 . 1 2 . 2 . 1 . . . 6 . . Allies Hacked 4 | . . . . . . . . . 1 . . . . . . . . . . 2 . . . . . 1 . Hacks Repelled 1 | . . . . . . . . . 1 . . . . . . . . . . . . . . . . . . Allies | -11 -10 -10 -10 -9 -8 -8 -8 -8 -7 -7 -6 -6 -5 -5 -5 -5 -5 -5 -4 -4 -4 -3 -3 -3 -3 -2 -1 -------- Run | Jun Mat Min Exi Min Mat Gar Mat Gar Fac Gar Fac Gar Fac Gar Fac Upp Upp War Pro Fac Gar Res Gar Res Gar Res Acc Total Allies 64 | . . 1 . . 1 2 . 2 1 3 2 14 3 3 . 1 3 . 4 2 6 3 1 5 7 . . Largest Group 12 | . . 1 . . 1 1 . 2 2 3 1 12 12 3 . 1 2 . 2 2 2 1 1 1 6 6 . Highest-Rated Group 336 | . . 31 . . 10 31 . 70 67 76 32 336 336 87 . 29 79 . 94 94 114 82 64 68 222 222 . Highest-Rated Ally 85 | . . 31 . . 10 31 . 39 39 31 32 46 54 29 . 29 49 . 47 51 85 82 64 68 47 42 . Total Orders 9 | . . . . . . . . . . . 3 2 . . . . . . . . . . . . . . 4 STAY 1 | . . . . . . . . . . . . 1 . . . . . . . . . . . . . . . ROAM 6 | . . . . . . . . . . . 3 . . . . . . . . . . . . . . . 3 FOLLOW 1 | . . . . . . . . . . . . 1 . . . . . . . . . . . . . . . EXPLORE 1 | . . . . . . . . . . . . . . . . . . . . . . . . . . . 1 Ally Attacks 266 | . . 3 . . . 11 . 25 36 13 2 18 57 34 . 4 4 . 6 3 22 6 2 6 . 14 . Total Damage 6153 | . . 62 . . . 213 . 375 456 229 36 719 1456 513 . 42 108 . 13 49 839 233 81 322 . 407 . Kills 37 | . . . . . . 3 . 4 4 2 . 4 11 . . . . . . 1 6 . . 1 . 1 . Allies Corrupted 6 | . . . . . . . . . . . . . 1 . . . . . . 1 . . . . . 4 . Allies Melted . | . . . . . . . . . . . . . . . . . . . . . . . . . . . . Intel | -11 -10 -10 -10 -9 -8 -8 -8 -8 -7 -7 -6 -6 -5 -5 -5 -5 -5 -5 -4 -4 -4 -3 -3 -3 -3 -2 -1 ------- Run | Jun Mat Min Exi Min Mat Gar Mat Gar Fac Gar Fac Gar Fac Gar Fac Upp Upp War Pro Fac Gar Res Gar Res Gar Res Acc Robot Analysis Total 13 | . . . . . 2 1 . . 2 . . . 2 . 1 . . . . 4 . . . 1 . . . Derelict Logs Recovered 9 | . . 2 . 1 . . . . . . . . . . . 2 3 . 1 . . . . . . . . Drone Launches 8 | . . . . . . . . . . . 3 . . . . . . . . . . . . . . . 5 Drone Recoveries 4 | . . . . . . . . . . . 1 . . . . . . . . . . . . . . . 3 Exploration | -11 -10 -10 -10 -9 -8 -8 -8 -8 -7 -7 -6 -6 -5 -5 -5 -5 -5 -5 -4 -4 -4 -3 -3 -3 -3 -2 -1 ------------- Run | Jun Mat Min Exi Min Mat Gar Mat Gar Fac Gar Fac Gar Fac Gar Fac Upp Upp War Pro Fac Gar Res Gar Res Gar Res Acc Turns Passed 56052 | 35 1074 502 721 670 2097 1440 2338 1228 4233 1451 2763 1510 3483 1560 2935 1803 1433 237 1925 2318 1547 2269 1225 6340 1667 2176 5072 Spaces Moved 29335 | 21 581 306 329 356 1012 612 829 564 1928 823 1763 923 2120 922 1515 1136 891 142 1178 1333 875 924 609 3189 888 1059 2507 Core 1 | . . . . . . . . . . . . . . . . . . . . . . 1 . . . . . Treads 15123 | 9 581 306 242 94 . . . . . . . . . 112 . 185 891 142 1178 1333 875 923 609 3189 888 1059 2507 Legs 4478 | 10 . . . . 409 612 829 564 1928 123 3 . . . . . . . . . . . . . . . . Wheels 9733 | 2 . . 87 262 603 . . . . 700 1760 923 2120 810 1515 951 . . . . . . . . . . . Hover . | . . . . . . . . . . . . . . . . . . . . . . . . . . . . Flight . | . . . . . . . . . . . . . . . . . . . . . . . . . . . . Fastest Speed 80 | 80 160 160 125 125 125 200 127 127 127 130 130 130 130 130 130 150 152 152 152 152 160 160 160 160 160 160 160 Average Speed 157 | 133 160 160 180 155 172 200 191 181 193 141 130 130 130 141 152 150 152 152 152 155 160 161 160 160 160 160 160 Slowest Speed 1900 | 160 160 160 240 240 200 200 200 197 200 200 330 130 130 225 210 152 152 152 152 160 160 1900 250 160 160 160 160 Overloaded Moves . | . . . . . . . . . . . . . . . . . . . . . . . . . . . . Propulsion Burnouts . | . . . . . . . . . . . . . . . . . . . . . . . . . . . . Robots Hopped . | . . . . . . . . . . . . . . . . . . . . . . . . . . . . Cave-ins Triggered 1 | . . . . . . . . . . . . . . . . . . . . . . . . . . 1 . Exploration Rate (%) 63 | 2 95 66 60 49 79 63 89 67 52 85 52 79 49 83 43 97 99 22 99 34 88 20 64 88 91 23 52 Regions Visited 27 Branch Regions 7 Pre-discovered Areas 4 | . 1 . . 1 . . . . . . . . . . . . 2 . . . . . . . . . . Known Exits Taken 18 | . 1 1 1 1 1 . 1 . 1 . 1 . 1 . 1 1 1 1 1 1 . 1 . 1 . 1 . Unknown Exits Taken 1 | 1 . . . . . . . . . . . . . . . . . . . . . . . . . . . Scrap Searched 11 | . . 1 . 1 . . . . . . . . . . . 4 4 . 1 . . . . . . . . Spaces Dug 144 | . . . . . 6 1 11 . 16 1 8 3 15 1 16 . . . . 7 . 8 . 30 1 4 16 Terrain Destroyed 546 | . 6 . 45 41 64 2 74 2 32 2 19 7 47 3 35 3 4 1 6 11 2 13 1 56 4 14 52 Melee 17 | . . . . . 6 1 10 . . . . . . . . . . . . . . . . . . . . Projectile 304 | . . . 7 3 9 1 19 2 32 2 13 7 35 3 32 3 4 1 4 11 2 13 1 56 4 14 26 AOE 225 | . 6 . 38 38 49 . 45 . . . 6 . 12 . 3 . . . 2 . . . . . . . 26 Terrain Rammed . | . . . . . . . . . . . . . . . . . . . . . . . . . . . . Walls Destroyed . | . . . . . . . . . . . . . . . . . . . . . . . . . . . . Machines Disabled . | . . . . . . . . . . . . . . . . . . . . . . . . . . . . Actions | -11 -10 -10 -10 -9 -8 -8 -8 -8 -7 -7 -6 -6 -5 -5 -5 -5 -5 -5 -4 -4 -4 -3 -3 -3 -3 -2 -1 --------- Run | Jun Mat Min Exi Min Mat Gar Mat Gar Fac Gar Fac Gar Fac Gar Fac Upp Upp War Pro Fac Gar Res Gar Res Gar Res Acc Total 38633 | 27 664 318 444 466 1290 790 1483 703 2338 1074 2220 1237 2843 1183 2123 1232 969 163 1310 1574 1019 1695 859 4411 1116 1532 3550 Wait 5273 | . 25 8 98 86 129 72 546 43 279 54 279 88 535 74 387 22 15 1 49 139 50 544 64 750 53 271 612 Move 29299 | 20 580 305 328 355 1011 610 828 562 1927 821 1762 921 2119 920 1514 1135 890 141 1177 1332 873 923 607 3188 886 1058 2506 Hop . | . . . . . . . . . . . . . . . . . . . . . . . . . . . . Pick Up 75 | . 2 1 2 2 7 7 2 2 2 2 8 1 3 3 2 2 . . . 5 . 1 4 5 . 5 7 Fast Attach 144 | 4 8 . 1 2 10 4 1 1 3 6 15 1 11 5 5 . . . . 2 1 14 10 19 2 6 13 Attach 24 | . 1 . . . 3 2 . . . . 1 1 . 1 . 1 . . . 2 . 1 1 4 . 4 2 Detach 21 | . . . . 2 1 . . . 1 1 1 . . 1 . . . . . 1 . 2 . 5 . 3 3 Swap 242 | 1 1 . . 2 12 14 9 4 7 5 10 2 9 3 21 1 1 . 5 9 6 5 7 40 8 20 40 Drop 189 | 2 5 1 2 1 14 10 3 2 5 8 22 1 14 10 6 2 . . . 8 . 13 15 22 2 7 14 Fire 2146 | . 30 1 12 6 64 38 56 50 78 87 93 79 97 83 132 39 41 11 45 55 56 119 99 299 115 127 234 Melee 27 | . . . . . 6 5 10 5 . . . . . . . . . . 1 . . . . . . . . Ram . | . . . . . . . . . . . . . . . . . . . . . . . . . . . . Kick 2 | . . . . . 2 . . . . . . . . . . . . . . . . . . . . . . Crush 2 | . . . . . . . . . . . . . . . . . . . . . . . . . 2 . . Escape Stasis 92 | . . . . . . 5 . 5 10 32 . . 8 32 . . . . . . . . . . . . . Rewire 199 | . . . . . . . . . 1 9 . 123 . 30 . 12 7 . 3 1 1 . . . 12 . . Trap . | . . . . . . . . . . . . . . . . . . . . . . . . . . . . Miscellaneous 898 | . 12 2 1 10 31 23 28 29 25 49 29 20 47 21 56 18 15 10 30 20 32 73 52 79 36 31 119 Route ------- -11/Junkyard -10/Materials (discovered 4 exits: *Mat x3 / *Min) -10/Mines (discovered 2 exits: *Mat / *Exi) -10/Exiles -9/Mines -8/Materials (discovered 4 exits: *Fac x3 / Gar) -8/Garrison (discovered 4 exits: *Mat x4) -8/Materials (discovered 4 exits: *Fac x3 / Gar) -8/Garrison (discovered 3 exits: *Fac x3) -7/Factory (discovered 10 exits: *Fac x4 / *Sto / *Low x2 / Gar / Gar / Gar) -7/Garrison (discovered 3 exits: *Fac x3) -6/Factory (discovered 5 exits: *Fac x2 / *Low x2 / Gar) -6/Garrison (discovered 3 exits: *Fac x3) -5/Factory (discovered 7 exits: *Fac x2 / Upp x2 / *Ext x2 / Gar) -5/Garrison (discovered 4 exits: *Fac x4) -5/Factory (discovered 7 exits: *Fac x3 / *Upp x2 / *Ext / Gar) -5/Upper Caves -5/Upper Caves (discovered 2 exits: *Fac / *War) -5/Warlord -4/Proximity Caves -4/Factory (discovered 8 exits: Res x4 / *Upp x2 / Arm / Gar) -4/Garrison (discovered 3 exits: *Res x3) -3/Research (discovered 3 exits: *Res / Qua / Gar) -3/Garrison (discovered 3 exits: *Res x3) -3/Research (discovered 7 exits: *Res x3 / *Qua x2 / Gar / Gar) -3/Garrison (discovered 3 exits: *Res x3) -2/Research -1/Access (discovered 2 exits: *Sur / *Com) To Epsilon Eridani History --------- Turn | Location | Event 1 | -11/Junkyard | Upgraded with Propulsion slot (x1) 1 | -11/Junkyard | Upgraded with Utility slot (x3) 1 | -11/Junkyard | Upgraded with Weapon slot (x1) 1 | -11/Junkyard | Discovered new exit (range 1) 36 | -11/Junkyard | Entered Materials 311 | -10/Materials | Build established: Mutant 376 | -10/Materials | Discovered new exit (range 11) 400 | -10/Materials | Identified exit to Mines 618 | -10/Materials | Discovered new exit (range 7) 632 | -10/Materials | Identified exit to Materials 734 | -10/Materials | Discovered exit to Materials (range 14) 931 | -10/Materials | Reached level 2 996 | -10/Materials | Discovered exit to Materials (range 5) 1062 | -10/Materials | Upgraded with Utility slot (x1) 1110 | -10/Materials | Entered Mines 1113 | -10/Mines | Received a Mining Laser from a helpful Derelict 1125 | -10/Mines | Learned location of 1 exit from Materials 1152 | -10/Mines | A weapon hastily lodged in a ceiling crevice suddenly fell to the ground 1167 | -10/Mines | Learned Materials emergency access door positions 1207 | -10/Mines | Deemed a non-threat by the Exiles lab entrance 1207 | -10/Mines | Discovered new exit (range 5) 1344 | -10/Mines | Discovered exit to Materials (range 15) 1609 | -10/Mines | Identified exit to Exiles 1612 | -10/Mines | Entered Exiles 1652 | -10/Exiles | Met 8R-AWN 1678 | -10/Exiles | Met EX-HEX 1728 | -10/Exiles | Met EX-BIN 1745 | -10/Exiles | Aligned with FarCom system 1747 | -10/Exiles | Given EX-Vault access code 1785 | -10/Exiles | Opened EX-Vault 1802 | -10/Exiles | Found Firepult 1857 | -10/Exiles | Warned to stay clear of 0b10 Research branches 1877 | -10/Exiles | Exiles lab attacked by MAIN.C 2004 | -10/Exiles | Discovered new exit (range 10) 2124 | -10/Exiles | Reached level 3 2146 | -10/Exiles | Destroyed 9 combat bots 2156 | -10/Exiles | Identified exit to Mines 2333 | -10/Exiles | Left Exiles lab with Firepult 2333 | -10/Exiles | Entered Mines 2335 | -9/Mines | Reached level 4 2475 | -9/Mines | Discovered new exit (range 7) 2489 | -9/Mines | Identified exit to Materials 2507 | -9/Mines | Met a Derelict shopkeep closing up shop 2681 | -9/Mines | Assembled infested the area 2686 | -9/Mines | Assisted by a Guerilla fighting off Assembled 2697 | -9/Mines | Found a hidden stash of uninstalled traps 2738 | -9/Mines | Learned location of Recycling (-7) 2845 | -9/Mines | Build established: Infiltrator-Mutant 3003 | -9/Mines | Entered Materials 3004 | -8/Materials | Identified exit to Factory 3005 | -8/Materials | Reached level 5 3005 | -8/Materials | Reached level 6 3007 | -8/Materials | Upgraded with Utility slot (x1) 3019 | -8/Materials | Upgraded with Weapon slot (x1) 3492 | -8/Materials | Repaired Gauss Rifle 3537 | -8/Materials | Repaired Gauss Rifle 3751 | -8/Materials | Identified exit to Garrison 3827 | -8/Materials | Discovered exit to Factory (range 4) 4016 | -8/Materials | Discovered exit to Factory (range 4) 4021 | -8/Materials | Reached level 7 4023 | -8/Materials | Upgraded with Utility slot (x1) 4871 | -8/Materials | Reached level 8 4998 | -8/Materials | Central database locked down 5100 | -8/Materials | Entered Garrison 5100 | -8/Garrison | Accompanied by 1 ally 5143 | -8/Garrison | Discovered new exit (range 49) 5143 | -8/Garrison | Discovered new exit (range 63) 5143 | -8/Garrison | Discovered new exit (range 71) 5143 | -8/Garrison | Discovered new exit (range 81) 5184 | -8/Garrison | Reached level 9 5262 | -8/Garrison | Triggered checkpoint 5389 | -8/Garrison | Reached level 10 5414 | -8/Garrison | Destroyed 10 combat bots 5460 | -8/Garrison | Triggered checkpoint 5496 | -8/Garrison | Rescued a captive Derelict 5509 | -8/Garrison | Rescued a captive Derelict 5620 | -8/Garrison | Installed Relay Interface Framework 5774 | -8/Garrison | Expanded RIF knowledge: Alert ID Control 5886 | -8/Garrison | Upgraded with Utility slot (x1) 6194 | -8/Garrison | Triggered checkpoint 6379 | -8/Garrison | Reached level 11 6423 | -8/Garrison | Upgraded with Propulsion slot (x1) 6441 | -8/Garrison | Upgraded with Weapon slot (x1) 6540 | -8/Garrison | Entered Materials 6717 | -8/Materials | Discovered exit to Factory (range 2) 6876 | -8/Materials | Discovered exit to Factory (range 9) 8062 | -8/Materials | Reached level 12 8180 | -8/Materials | Discovered exit to Factory (range 17) 8255 | -8/Materials | Upgraded with Propulsion slot (x1) 8592 | -8/Materials | Build established: Hacker-Mutant 8842 | -8/Materials | Identified exit to Garrison 8878 | -8/Materials | Entered Garrison 8936 | -8/Garrison | Triggered checkpoint 8951 | -8/Garrison | Discovered exit to Factory (range 57) 8951 | -8/Garrison | Discovered exit to Factory (range 75) 8951 | -8/Garrison | Discovered exit to Factory (range 53) 9039 | -8/Garrison | Triggered checkpoint 9079 | -8/Garrison | Reached level 13 9100 | -8/Garrison | Destroyed 12 combat bots 9103 | -8/Garrison | Upgraded with Power slot (x1) 9216 | -8/Garrison | Expanded RIF knowledge: Patrol Navigation 9318 | -8/Garrison | Triggered checkpoint 9417 | -8/Garrison | Spotted B-75 Beast 9502 | -8/Garrison | Core integrity fell below 50% 9552 | -8/Garrison | Destroyed B-75 Beast 9838 | -8/Garrison | Rescued a captive Derelict 9847 | -8/Garrison | Rescued a captive Derelict 10065 | -8/Garrison | Triggered checkpoint 10106 | -8/Garrison | Entered Factory 10106 | -7/Factory | Accompanied by 2 allies 10108 | -7/Factory | Reached level 14 10414 | -7/Factory | Repaired Particle Charger 10701 | -7/Factory | Discovered new exit (range 5) 10922 | -7/Factory | Repaired Imp. Heavy Armor Plating 10929 | -7/Factory | Fabricated Adv. Power Amplifier? 11191 | -7/Factory | Reached level 15 11300 | -7/Factory | Identified exit to Factory 11608 | -7/Factory | Build established: Hacker-Skirmisher 11877 | -7/Factory | Discovered new exit (range 10) 11896 | -7/Factory | Identified exit to Storage 12011 | -7/Factory | Build established: Hacker-Mutant 12181 | -7/Factory | Identified exit to Garrison 12720 | -7/Factory | Identified exit to Garrison 13192 | -7/Factory | Discovered new exit (range 6) 13200 | -7/Factory | Identified exit to Lower Caves 13473 | -7/Factory | Identified exit to Garrison 13654 | -7/Factory | Discovered exit to Lower Caves (range 13) 14339 | -7/Factory | Entered Garrison 14341 | -7/Garrison | Reached level 16 14478 | -7/Garrison | Destroyed 7 combat bots 14550 | -7/Garrison | Triggered checkpoint 14595 | -7/Garrison | Spotted B-75 Beast 14607 | -7/Garrison | Destroyed B-75 Beast 14665 | -7/Garrison | Found Quantum Capacitor 14770 | -7/Garrison | Triggered checkpoint 14770 | -7/Garrison | Triggered checkpoint 14993 | -7/Garrison | Expanded RIF knowledge: Hotswap 15001 | -7/Garrison | Discovered exit to Factory (range 11) 15056 | -7/Garrison | Triggered checkpoint 15059 | -7/Garrison | Garrison Relay disabled 15256 | -7/Garrison | Discovered exit to Factory (range 13) 15308 | -7/Garrison | Triggered checkpoint 15358 | -7/Garrison | Expanded RIF knowledge: Program Shield 15408 | -7/Garrison | Learned Factory security intel 15546 | -7/Garrison | Triggered checkpoint 15550 | -7/Garrison | Reached level 17 15632 | -7/Garrison | Triggered checkpoint 15753 | -7/Garrison | Discovered exit to Factory (range 9) 15790 | -7/Garrison | Entered Factory 15800 | -6/Factory | Local machine network offline 15817 | -6/Factory | Identified exit to Garrison 16024 | -6/Factory | Reached level 18 16025 | -6/Factory | Upgraded with Utility slot (x1) 16375 | -6/Factory | Discovered new exit (range 6) 16818 | -6/Factory | Discovered new exit (range 45) 17461 | -6/Factory | Discovered new exit (range 6) 17479 | -6/Factory | Identified exit to Lower Caves 18072 | -6/Factory | Cargo convoy interrupted 18195 | -6/Factory | Discovered new exit (range 8) 18203 | -6/Factory | Identified exit to Factory 18553 | -6/Factory | Entered Garrison 18555 | -6/Garrison | Reached level 19 18656 | -6/Garrison | Triggered checkpoint 18874 | -6/Garrison | Triggered checkpoint 18874 | -6/Garrison | Triggered checkpoint 19021 | -6/Garrison | Discovered exit to Factory (range 16) 19184 | -6/Garrison | Triggered checkpoint 19472 | -6/Garrison | Triggered checkpoint 19518 | -6/Garrison | Learned Factory security intel 19523 | -6/Garrison | Discovered exit to Factory (range 13) 19556 | -6/Garrison | Triggered checkpoint 19631 | -6/Garrison | Build established: Commander-Mutant 19708 | -6/Garrison | Triggered checkpoint 19765 | -6/Garrison | Discovered exit to Factory (range 10) 19851 | -6/Garrison | Expanded RIF knowledge: Coupler Efficiency 19851 | -6/Garrison | Reached level 20 19860 | -6/Garrison | Upgraded with Utility slot (x1) 20063 | -6/Garrison | Entered Factory 20063 | -5/Factory | Accompanied by 12 allies 20363 | -5/Factory | First assault squad dispatched 20482 | -5/Factory | Reached level 21 20785 | -5/Factory | Build established: Hacker-Mutant 20808 | -5/Factory | Discovered new exit (range 13) 20823 | -5/Factory | Identified exit to Extension 21282 | -5/Factory | Discovered new exit (range 17) 21305 | -5/Factory | Identified exit to Factory 22210 | -5/Factory | Identified exit to Garrison 22232 | -5/Factory | Discovered exit to Factory (range 5) 22583 | -5/Factory | Repaired System Restoration Module 22609 | -5/Factory | Identified exit to Garrison 22790 | -5/Factory | Reached level 22 22829 | -5/Factory | Identified exit to Upper Caves 23546 | -5/Factory | Entered Garrison 23546 | -5/Garrison | Accompanied by 1 ally 23668 | -5/Garrison | Triggered checkpoint 23778 | -5/Garrison | Triggered checkpoint 23800 | -5/Garrison | Triggered checkpoint 23800 | -5/Garrison | Triggered checkpoint 23847 | -5/Garrison | Destroyed 11 combat bots 23870 | -5/Garrison | Reached level 23 23930 | -5/Garrison | Discovered new exit (range 10) 23970 | -5/Garrison | Triggered checkpoint 24005 | -5/Garrison | Discovered new exit (range 6) 24010 | -5/Garrison | Identified exit to Factory 24118 | -5/Garrison | Triggered checkpoint 24202 | -5/Garrison | Triggered checkpoint 24295 | -5/Garrison | Expanded RIF knowledge: Structural Interface 24389 | -5/Garrison | Discovered exit to Factory (range 15) 24532 | -5/Garrison | Triggered checkpoint 24576 | -5/Garrison | Triggered checkpoint 24602 | -5/Garrison | Learned Factory security intel 24651 | -5/Garrison | Discovered exit to Factory (range 8) 24860 | -5/Garrison | Upgraded with Utility slot (x1) 25106 | -5/Garrison | Entered Factory 25318 | -5/Factory | Discovered exit to Upper Caves (range 17) 25323 | -5/Factory | Identified exit to Garrison 25945 | -5/Factory | Discovered exit to Upper Caves (range 5) 26006 | -5/Factory | First assault squad dispatched 26789 | -5/Factory | Discovered exit to Factory (range 11) 27131 | -5/Factory | Reached level 24 27316 | -5/Factory | Discovered exit to Factory (range 13) 27324 | -5/Factory | Discovered exit to Factory (range 14) 27661 | -5/Factory | Fabricated Imp. Particle Charger (x2) 27814 | -5/Factory | Discovered exit to Extension (range 12) 28041 | -5/Factory | Entered Upper Caves 28118 | -5/Upper Caves | Identified exit to Upper Caves 28494 | -5/Upper Caves | Learned Factory stockpile data 28516 | -5/Upper Caves | Attracted the attention of an 0b10 checkpoint 28572 | -5/Upper Caves | Attracted the attention of an 0b10 outpost 29009 | -5/Upper Caves | Spotted B-75 Beast 29059 | -5/Upper Caves | Destroyed B-75 Beast 29844 | -5/Upper Caves | Entered another Upper Caves area 29946 | -5/Upper Caves | Encountered a Warlord checkpoint 30168 | -5/Upper Caves | Discovered exit to Factory (range 16) 30232 | -5/Upper Caves | Learned Factory trap positions 30547 | -5/Upper Caves | Spotted B-75 Beast 30552 | -5/Upper Caves | Destroyed B-75 Beast 30923 | -5/Upper Caves | Learned location of Warlord (-5) 31096 | -5/Upper Caves | Attracted the attention of an 0b10 outpost 31157 | -5/Upper Caves | Destroyed 7 combat bots 31193 | -5/Upper Caves | Attracted the attention of an 0b10 checkpoint 31246 | -5/Upper Caves | Discovered new exit (range 10) 31275 | -5/Upper Caves | Identified exit to Warlord 31277 | -5/Upper Caves | Entered Warlord 31351 | -5/Warlord | RIF detected upon attempting to enter Warlord's base 31351 | -5/Warlord | Attacked by Warlord forces 31369 | -5/Warlord | Spotted PS-T55(B) 31369 | -5/Warlord | Spotted OI-WR4(B) 31399 | -5/Warlord | Core integrity fell below 50% 31426 | -5/Warlord | Discovered new exit (range 13) 31440 | -5/Warlord | Identified exit to Proximity Caves 31443 | -5/Warlord | Destroyed OI-WR4(B) 31452 | -5/Warlord | Destroyed PS-T55(B) 31502 | -5/Warlord | Warlord's base attacked by MAIN.C 31514 | -5/Warlord | Entered Proximity Caves 31563 | -4/Proximity Caves | Reached level 25 31821 | -4/Proximity Caves | Spotted B-86 Titan 31833 | -4/Proximity Caves | Destroyed B-86 Titan 32117 | -4/Proximity Caves | Received a Behemoth hack from an annoying Tinkerer 32130 | -4/Proximity Caves | Discovered exit to Factory (range 5) 32448 | -4/Proximity Caves | Attracted the attention of an 0b10 checkpoint 32779 | -4/Proximity Caves | Attracted the attention of an 0b10 outpost 32821 | -4/Proximity Caves | Destroyed 7 combat bots 33439 | -4/Proximity Caves | Entered Factory 33439 | -4/Factory | Accompanied by 2 allies 33440 | -4/Factory | Loaded intel: 71 trap records 33783 | -4/Factory | Reached level 26 33884 | -4/Factory | Identified exit to Upper Caves 33884 | -4/Factory | Identified exit to Armory 34199 | -4/Factory | Repaired Exp. Weapon Shielding 34245 | -4/Factory | Identified exit to Research 34386 | -4/Factory | Identified exit to Garrison 34598 | -4/Factory | Fabricated Adv. Heavy Siege Treads (x2) 34926 | -4/Factory | Central database locked down 35580 | -4/Factory | Local machine network offline 35749 | -4/Factory | Identified exit to Garrison 35757 | -4/Factory | Entered Garrison 35848 | -4/Garrison | Rescued a captive Derelict 35850 | -4/Garrison | Rescued a captive Derelict 35868 | -4/Garrison | Spotted B-75 Beast 35870 | -4/Garrison | Spotted B-86 Titan 35937 | -4/Garrison | Destroyed B-75 Beast 35940 | -4/Garrison | Destroyed B-86 Titan 35991 | -4/Garrison | Rewired B-75 Beast 36032 | -4/Garrison | Triggered checkpoint 36122 | -4/Garrison | Triggered checkpoint 36239 | -4/Garrison | Discovered exit to Research (range 10) 36352 | -4/Garrison | Triggered checkpoint 36387 | -4/Garrison | Triggered checkpoint 36464 | -4/Garrison | Discovered exit to Research (range 16) 36500 | -4/Garrison | Triggered checkpoint 36755 | -4/Garrison | Expanded RIF knowledge: Code Merge 36763 | -4/Garrison | Discovered exit to Research (range 11) 36770 | -4/Garrison | Triggered checkpoint 37026 | -4/Garrison | Triggered checkpoint 37135 | -4/Garrison | Garrison Relay disabled 37136 | -4/Garrison | Garrison Relay disabled 37136 | -4/Garrison | Reached level 27 37206 | -4/Garrison | Upgraded with Utility slot (x1) 37304 | -4/Garrison | Entered Research 37305 | -3/Research | Identified exit to Quarantine 37554 | -3/Research | First assault squad dispatched 37641 | -3/Research | Spotted B-86 Titan 37650 | -3/Research | Destroyed B-86 Titan 37668 | -3/Research | Identified exit to Garrison 37809 | -3/Research | Core integrity fell below 50% 37864 | -3/Research | Discovered new exit (range 16) 37910 | -3/Research | Identified exit to Research 37989 | -3/Research | Reached level 28 38991 | -3/Research | Cargo convoy interrupted 38993 | -3/Research | Spotted Executioner 38993 | -3/Research | Spotted Executioner 38999 | -3/Research | Destroyed Executioner 39000 | -3/Research | Destroyed Executioner 39027 | -3/Research | Destroyed 8 combat bots 39085 | -3/Research | Local machine network offline 39243 | -3/Research | Found Prototype Device 39243 | -3/Research | Identified Exp. ECM Suite 39573 | -3/Research | Entered Garrison 39575 | -3/Garrison | Reached level 29 39596 | -3/Garrison | Discovered new exit (range 61) 39596 | -3/Garrison | Discovered new exit (range 84) 39596 | -3/Garrison | Discovered new exit (range 41) 39678 | -3/Garrison | Triggered checkpoint 39717 | -3/Garrison | Upgraded with Power slot (x1) 39758 | -3/Garrison | Triggered checkpoint 39928 | -3/Garrison | Triggered checkpoint 40078 | -3/Garrison | Triggered checkpoint 40082 | -3/Garrison | Local machine network offline 40510 | -3/Garrison | Triggered checkpoint 40794 | -3/Garrison | Identified exit to Research 40798 | -3/Garrison | Entered Research 40917 | -3/Research | Spotted B-86 Titan 41199 | -3/Research | Identified exit to Garrison 41791 | -3/Research | Identified exit to Garrison 42306 | -3/Research | Reached level 30 42542 | -3/Research | Found Prototype Processor 42542 | -3/Research | Identified Spectral Analyzer 42955 | -3/Research | Found Prototype Device 42955 | -3/Research | Identified Exp. Shield Generator 43698 | -3/Research | Found Prototype Device 43698 | -3/Research | Identified Exp. Thermal Shield 44562 | -3/Research | Repaired Adv. System Restoration Module 44567 | -3/Research | P-80 Master assimilated allied H-77 Assassin 45151 | -3/Research | Identified exit to Garrison 45272 | -3/Research | Found Prototype Device 45272 | -3/Research | Identified Adv. EM Disruption Field 45502 | -3/Research | Fabricated Adv. Trap Scanner (x2) 46844 | -3/Research | Spotted B-86 Titan 46956 | -3/Research | Destroyed B-86 Titan 47079 | -3/Research | Spotted B-86 Titan 47128 | -3/Research | Identified exit to Garrison 47138 | -3/Research | Entered Garrison 47282 | -3/Garrison | Expanded RIF knowledge: Code Merge 47302 | -3/Garrison | Triggered checkpoint 47302 | -3/Garrison | Garrison Relay disabled 47414 | -3/Garrison | Triggered checkpoint 47621 | -3/Garrison | Discovered exit to Research (range 9) 47700 | -3/Garrison | Triggered checkpoint 47702 | -3/Garrison | Reached level 31 47764 | -3/Garrison | Destroyed 9 combat bots 47978 | -3/Garrison | Discovered exit to Research (range 10) 48046 | -3/Garrison | Triggered checkpoint 48104 | -3/Garrison | Triggered checkpoint 48118 | -3/Garrison | Triggered checkpoint 48118 | -3/Garrison | Triggered checkpoint 48196 | -3/Garrison | Triggered checkpoint 48388 | -3/Garrison | Discovered exit to Research (range 10) 48430 | -3/Garrison | Triggered checkpoint 48432 | -3/Garrison | Local machine network offline 48805 | -3/Garrison | Entered Research 48805 | -2/Research | Accompanied by 6 allies 49140 | -2/Research | Repaired Broken Quantum Capacitor 49833 | -2/Research | Reached level 32 49838 | -2/Research | Upgraded with Utility slot (x1) 49864 | -2/Research | Discovered new exit (range 16) 49892 | -2/Research | Identified exit to Access 50276 | -2/Research | Spotted Striker 50277 | -2/Research | Cargo convoy interrupted 50555 | -2/Research | First assault squad dispatched 50929 | -2/Research | Crushed by falling debris 50929 | -2/Research | Core integrity fell below 50% 50950 | -2/Research | Destroyed 8 combat bots 50981 | -2/Research | Entered Access 50983 | -1/Access | Reached level 33 51012 | -1/Access | Found Prototype Processor 51012 | -1/Access | Identified Exp. Signal Interpreter 51519 | -1/Access | Reached level 34 51731 | -1/Access | First assault squad dispatched 52368 | -1/Access | Repaired Broken Adv. Cryofiber Web 52607 | -1/Access | Discovered new exit (range 8) 52616 | -1/Access | Identified exit to Command 53420 | -1/Access | Spotted B-99 Colossus 53639 | -1/Access | Repaired Broken Particle Accelerator 53649 | -1/Access | Reached level 35 53721 | -1/Access | Destroyed B-99 Colossus 54015 | -1/Access | Found Prototype Processor 54015 | -1/Access | Identified Exp. Melee Analysis Suite 55565 | -1/Access | Found Prototype Device 55565 | -1/Access | Identified Exp. Transmission Jammer 56045 | -1/Access | Discovered new exit (range 6) 56051 | -1/Access | Identified exit to Surface 56053 | *** | Escaped! Last Messages --------------- 55963_ Used Protomatter to restore core integrity (+7) 55964_ Used Protomatter to restore part integrity (+2) 55967_ Detecting nearby Garrison Access. 55975_ Connecting with Terminal... >>Query(Matter Drive) Using a technology similar to that employed by the [Terrabomb], Matter Drives instead convert nearby earth and rock to pure energy. The [Leopard]'s hull is lined with these, suggesting they could be a way for the ship to quickly burrow into asteroids or solid planetary bodies rather than as a primary source of power. This technology has been weaponized in the form of the [Disintegrator] prototype. 55999_ U-05 Engineer builds a Wall. 56017_ K-01 Serf cleans the Terminal. 56040_ Connecting with Terminal... >>Open(Door) Sealed Barrier opened. 56045_ The Access Shell folds into the floor. 56045_ EXIT=FOUND 56051_ EXIT=IDENTIFIED: SURFACE [Achievement: Death Machine] Map ----- +----------------------------------------------------+ | ?????????????????????????????????????????????????? | | ?????????????????????????????????????????????????? | | ?????????????????????????????????????????????????? | | ?????????????????????????????????????????????????? | | ?????????????????????????????????????????????????? | | ?????????????????????????????????????????????????? | | ?????????????????????????????????????????????????? | | ?????????????????????????????????????????????????? | | ?????????????????????????????????????????????????? | | ?????????????????????????????????????????????????? | | ?????????????????????????????????????????????????? | | ?????????????????????????????????????????????????? | | ?????????????????????????????????????? ?????????? | | ?????????????????????????????????????? #????????? | | ?????????????????????????????????????? #????????? | | ?????????????????????????????????????? #????????? | | ?????????????????????????????????????# #????????? | | ?????????????????????????????????????# #????????? | | ?????????????????????????????????????# #????????? | | ?????????????????????????????###?????# #????????? | | ????????????????????########## ####### #????????? | | ????????????????????" #????????? | | ??????????????BB????" #????????? | | ??????????????BB????" #????????? | | ????????????????????" #????????? | | ????????????????????" "@ #????????? | | ????????????????????" "" #????????? | | ????????????????????" #????????? | | ??????????????BB????" #????????? | | ??????????????BB????" """ """ #????????? | | ????????????????????" """T""" #????????? | | ????????????????????########## ####### #????????? | | ?????????????????????????????###?????# #???????## | | ?????????????????????????????????????# #???????# | | ?????????????????????????????????????# #???????# | | ?????????????????????????????????????# #???????## | | ?????????????????????????????????????# #########[ | | ?????????????????????????????????????# # "" !% | | ???????????##############????????????# # "" [ | | ???????????# #????????????# # """" | | ???????????# #????????????# # """" | | ???????????# #????????????# # """" | | ???????????# #????????????# # """" | | ???????????# #????????????# + """" | | ???????????# "" ############## # "" | | ???????????# "" ## # # | | ???????????# "T ## # # | | ???????????# " = ## """ # # | | ???????????# " !==|! ## Y" # # | | ???????????# !*%[=[ ##= """ # ########## | +----------------------------------------------------+ Best States ------------- Heat Dissipation 201 Energy Generation 112 Energy Capacity 850 Matter Stores 324 Matter Capacity 500 Sight Range 17 Robot Scan Range 4 Terrain Scan Density 210 Jamming Range 22 Power Amplification 70 Additional Mass Support 12 Base Temperature (-) 200 EM Shielding 3 Armor Coverage 600 Resistance: KI 35 Resistance: TH 50 Resistance: EX 20 Resistance: EM 20 Resistance: I 20 Resistance: S 20 Resistance: P 20 Weapon Shielding 90 Weapon Cycling 20 Phase Shifting 15 Evasion (%) 55 Targeting Accuracy 5 Core Analysis 6 Armor Integrity Analysis 40 Recoil Reduction 4 Energy Filtering 50 Particle Charging 30 Offensive Hacking 35 Defensive Hacking 20 Item Schematics ----------------- System Restoration Module | -8/Materials | Scanalyzed Imp. Titanium Leg | -8/Materials | Scanalyzed Trap Scanner | -8/Materials | Hacked Hvy. Machine Gun | -8/Materials | Scanalyzed Adv. Shield Generator | -8/Materials | Scanalyzed Dynamic Insulation System | -8/Materials | Scanalyzed Enh. Gauss Cannon | -7/Factory | Scanalyzed Phase Gun | -7/Factory | Downloaded Adv. Weapon Cycler | -5/Factory | Hacked Centrium Wheel | -5/Factory | Hacked Enh. Quantum Rifle | -5/Factory | Scanalyzed Adv. Phase Shifter | -5/Factory | Scanalyzed Imp. Particle Charger | -5/Factory | Hacked Biometal Heavy Treads | -4/Factory | Hacked Imp. Armor Integrity Analyzer | -4/Factory | Hacked Adv. Cryofiber Web | -4/Factory | Hacked Exp. Weapon Shielding | -4/Factory | Hacked Exp. Heat Sink | -4/Factory | Hacked Adv. Heavy Siege Treads | -4/Factory | Hacked Adv. Particle Charger | -4/Factory | Hacked Adv. System Restoration Module | -4/Factory | Hacked Adv. Trap Scanner | -4/Factory | Hacked Imp. Dynamic Insulation System | -3/Research | Scanalyzed Quantum Reactor | -3/Research | Hacked Exp. Power Amplifier | -3/Research | Scanalyzed Graphene Brace | -3/Research | Scanalyzed Adv. Force Field | -3/Research | Scanalyzed Quantum Capacitor | -3/Research | Scanalyzed Coolant Network | -3/Research | Scanalyzed Exp. Thermal Generator | -3/Research | Scanalyzed Imp. Antigrav System | -3/Research | Extracted Com. HERF Cannon | -2/Research | Scanalyzed Robot Schematics ------------------ None Fabricated ------------ Adv. Power Amplifier | x1 | -7/Factory | Preloaded Imp. Particle Charger | x2 | -5/Factory Adv. Heavy Siege Treads | x2 | -4/Factory Adv. Trap Scanner | x2 | -3/Research Alien Tech Used ----------------- None Achievements -------------- Death Machine Tank Challenges ------------ None RPGLIKE | -11 -10 -10 -10 -9 -8 -8 -8 -8 -7 -7 -6 -6 -5 -5 -5 -5 -5 -5 -4 -4 -4 -3 -3 -3 -3 -2 -1 --------- Run | Jun Mat Min Exi Min Mat Gar Mat Gar Fac Gar Fac Gar Fac Gar Fac Upp Upp War Pro Fac Gar Res Gar Res Gar Res Acc Levels Raised 34 | . 1 . 1 1 4 3 1 1 2 2 1 2 2 1 1 . . . 1 1 1 1 1 1 1 1 3 XP Earned 56020 | 4000 1690 600 1750 1099 6108 3983 2093 1327 3682 1839 2738 1644 3777 1196 1159 327 375 122 1424 997 1138 2871 1002 1748 668 2195 4468 XP Spent 54835 | 3650 1400 . 1900 1400 6070 4200 1700 1190 3460 1500 2600 2900 1525 3200 1750 . . . . 800 3740 . 2800 . . 3800 5250 Upgrades 70 | 6 1 . 8 3 6 3 3 3 11 1 1 1 4 1 1 . . . . 1 5 . 2 . . 1 8 Power Slot 2 | . . . . . . . . 1 . . . . . . . . . . . . . . 1 . . . . Propulsion Slot 3 | 1 . . . . . 1 1 . . . . . . . . . . . . . . . . . . . . Utility Slot 12 | 3 1 . . . 2 1 . . . . 1 1 . 1 . . . . . . 1 . . . . 1 . Weapon Slot 3 | 1 . . . . 1 1 . . . . . . . . . . . . . . . . . . . . . Core Integrity 4 | . . . . . . . . . 2 . . . . . . . . . . . 2 . . . . . . Heat Dissipation 8 | . . . 5 . 2 . . 1 . . . . . . . . . . . . . . . . . . . Energy Generation 2 | . . . . 1 . . . . . . . . . . . . . . . . . . . . . . 1 Inventory Capacity 8 | 1 . . 2 1 1 . . . . 1 . . . . 1 . . . . . . . 1 . . . . Sight Range 1 | . . . . 1 . . . . . . . . . . . . . . . . . . . . . . . Sensor Range 2 | . . . . . . . . . . . . . 2 . . . . . . . . . . . . . . Terrain Scan Density 2 | . . . . . . . . . . . . . . . . . . . . . 2 . . . . . . Ranged Accuracy 4 | . . . . . . . 1 1 2 . . . . . . . . . . . . . . . . . . Hack Attack % 5 | . . . . . . . 1 . 1 . . . 1 . . . . . . 1 . . . . . . 1 Hack Defense % 3 | . . . . . . . . . 2 . . . 1 . . . . . . . . . . . . . . KI Resistance % 3 | . . . . . . . . . 1 . . . . . . . . . . . . . . . . . 2 TH Resistance % 3 | . . . . . . . . . 1 . . . . . . . . . . . . . . . . . 2 KI Damage % 1 | . . . . . . . . . 1 . . . . . . . . . . . . . . . . . . TH Damage % 4 | . . . 1 . . . . . 1 . . . . . . . . . . . . . . . . . 2 Protomatter Created 15419 | . 107 . 239 92 426 475 695 322 375 427 489 394 457 494 911 406 619 74 240 182 495 964 916 1898 878 882 1962 Integrity Restored 16671 | . 228 31 24 208 563 400 458 626 459 1070 459 363 938 362 1013 287 261 222 581 387 520 1556 1000 1316 602 608 2129 Core 11863 | . 172 31 24 187 345 198 277 559 278 774 341 265 584 287 790 140 113 222 458 253 408 1260 465 1029 480 451 1472 Parts 4808 | . 56 . . 21 218 202 181 67 181 296 118 98 354 75 223 147 148 . 123 134 112 296 535 287 122 157 657 Protomatter Decayed 9317 | . 39 16 248 25 134 190 491 46 276 28 313 362 222 345 444 459 432 . . 48 506 330 541 1405 606 777 1034 Game ------ Seed ResetCombatKinecellerator Manual? 0 Play Time 08:31:30 Cumulative 150.4 hours Start 2023.11.19 @ 12:49:51 End 2023.11.23 @ 21:09:18 Sessions 19 Manual Loads 0 Difficulty Adventurer Special Mode Winter2019/RPGLIKE Game No. 53 Rogue 28 Adventurer 25 Explorer 0 Win Type 0 Total 7 Types 6/0/1/0/0/0/0/0/0 Lore% 62 Gallery% 69 Achievement% 58 Wizard Run 0 Options --------- ASCII 0 Keyboard 1 Movement Vi Keybinds 0 Fullscreen 2 Font 18/Terminus Map View 76x50 Tactical HUD 1 Map Filters NONE Filters NONE Steam X RUN: 5d3adf25-99f8-4629-aa4f-31697f02d038